Cogmind - Beta 12 @@@ ROGUE MODE // 2023.04.28 @ 15:35:57 Player: Savant Result: Destroyed Tau Ceti IV! Performance ------------- Evolutions (9) 4500 Regions Visited (38) 7600 Robots Destroyed (279) 1395 Value Destroyed (12112) 12112 Prototype IDs (137) 2740 Alien Tech Used (19) 3800 Bonus (41983) 41983 TOTAL SCORE: 74130 Bonus ------- Triggered Max Security 2000 High Alert Combat Kills 1841 Follower Combat Kills 3968 Network Hubs Disabled 400 Met Data Miner 300 Met Imprinter 300 Met Zhirov 300 Built Enhanced Grunts 300 A7 Reached Mainframe 300 Used Core Reset Matrix 3000 Integrated Exoskeleton 5000 Destroyed MAIN.C Guards 500 Met MAIN.C 5000 Destroyed MAIN.C Shell 5000 Met Architect 300 Started Test 138-B 500 Started Test 138-C 8000 Destroyed A8 300 Destroyed A6 400 Destroyed A5 500 Destroyed A2 1000 Win 3000 Friendly Fire -226 Cogmind --------- Core Integrity 690/1600 Matter 376/425 Energy 446/450 System Corruption 0% Temperature Cool (0) Movement Walking (30) Location Subspace Parts ------- > --- POWER (1) -------- Improved Quantum Reactor > --- PROPULSION (3) --- Sigix Exoskeleton > --- UTILITY (6) ------ Experimental Melee Analysis Suite Weapon Mount Experimental Core Analyzer Femtoactuators Advanced Reaction Control System Advanced Force Field > --- WEAPON (2) ------- Sigix Broadsword > --- INVENTORY (7) ---- Experimental Energy Well (600) Transdimensional Reconstructor Core Cannon Core Stripper Peak State ------------ > --- POWER ------------ Improved Quantum Reactor > --- PROPULSION ------- Sigix Exoskeleton > --- UTILITY ---------- Experimental Melee Analysis Suite Weapon Mount Experimental Core Analyzer Femtoactuators Advanced Reaction Control System Advanced Force Field > --- WEAPON ----------- Sigix Broadsword > --- INVENTORY -------- Experimental Energy Well Transdimensional Reconstructor Core Cannon Core Stripper [Rating: 246] Favorites ----------- Power Compact Particle Reactor Engine Improved Deuterium Engine Power Core Micro Fission Core Reactor Compact Particle Reactor Propulsion Field Propulsion Array Treads Armored Treads Leg Sigix Exoskeleton Wheel Armored Wheel Hover Unit Improved Antigrav System Flight Unit Field Propulsion Array Utility Advanced System Shield Device Experimental Sensor Array Storage Huge Storage Unit Processor Experimental Signal Interpreter Hackware Advanced System Shield Protection Experimental Utility Shielding Weapon Ionic Axe Energy Gun Heavy Dispersion Rifle Energy Cannon Enhanced Nova Cannon Ballistic Gun Shotgun Ballistic Cannon Mini Assault Cannon Launcher Improved Grenade Launcher Special Weapon Plasma Cutter Impact Weapon Gravity Flail Slashing Weapon Ionic Axe Piercing Weapon CR-A16's Behemoth Slayer Special Melee Weapon Improved Datajack Build | -11 -10 -10 -10 -9 -8 -8 -7 -7 -7 -7 -6 -6 -6 -6 -6 -5 -5 -5 -5 -5 -5 -5 -4 -4 -4 -4 -4 -4 -4 -4 -3 -3 -2 -2 -2 -1 -1 -1 ------- Run | Jun Mat Min Exi Min Mat Sto Fac Low Low Zio Pro Fac Low Low Dat Pro Fac Was Fac Upp Upp Zhi Pro Fac Was Fac Ext Cet Arc Hub Res Tes Res Qua Sec Acc Com Ac0 Slots Evolved 18 | . . . . . 4 . 2 . . . . 2 . . . . 2 . . . . . . 2 . . . . . . 2 . 2 . . 2 . . Power 1 | . . . . . . . . . . . . . . . . . . . . . . . . . . . . . . . 1 . . . . . . . Propulsion 5 | . . . . . 1 . 2 . . . . . . . . . . . . . . . . . . . . . . . 1 . 1 . . . . . Utility 12 | . . . . . 3 . . . . . . 2 . . . . 2 . . . . . . 2 . . . . . . . . 1 . . 2 . . Weapon . | . . . . . . . . . . . . . . . . . . . . . . . . . . . . . . . . . . . . . . . Parts Attached 736 | 6 33 6 2 7 76 16 31 6 6 10 13 48 13 5 1 3 42 . 24 10 9 10 6 56 . 22 16 7 2 22 46 23 38 13 31 7 54 16 Power 35 | 1 2 . . . 3 . 1 . . . . 1 1 . . . 1 . 4 . . 2 . 1 . . 1 . . 2 8 1 1 . 3 . 2 . Engine 9 | 1 2 . . . 1 . 1 . . . . 1 1 . . . . . . . . . . . . . . . . . 2 . . . . . . . Core 4 | . . . . . 2 . . . . . . . . . . . 1 . 1 . . . . . . . . . . . . . . . . . . . Reactor 22 | . . . . . . . . . . . . . . . . . . . 3 . . 2 . 1 . . 1 . . 2 6 1 1 . 3 . 2 . Propulsion 77 | 2 12 . . 2 15 2 7 . 1 3 . 8 . . . . 3 . 2 . . 1 . 3 . . . . . 3 8 . 5 . . . . . Treads 20 | 1 7 . . 1 7 . 2 . . 1 . 1 . . . . . . . . . . . . . . . . . . . . . . . . . . Leg . | . . . . . . . . . . . . . . . . . . . . . . . . . . . . . . . . . . . . . . . Wheel 20 | 1 5 . . 1 7 1 3 . 1 1 . . . . . . . . . . . . . . . . . . . . . . . . . . . . Hover 1 | . . . . . . . 1 . . . . . . . . . . . . . . . . . . . . . . . . . . . . . . . Flight 36 | . . . . . 1 1 1 . . 1 . 7 . . . . 3 . 2 . . 1 . 3 . . . . . 3 8 . 5 . . . . . Utility 417 | 1 6 2 . 3 19 4 11 4 3 1 11 32 10 3 1 3 26 . 15 2 5 7 4 45 . 22 11 5 2 14 25 14 22 9 21 6 39 9 Device 256 | . 1 1 . 1 6 2 6 3 1 . 7 15 6 2 1 2 11 . 8 1 2 2 3 29 . 12 9 3 2 9 14 12 17 6 16 4 34 8 Storage 20 | 1 4 . . . 2 . . . . . . 1 . . . . 1 . 1 . . . . 3 . 1 . . . . 1 . . . 1 . 4 . Processor 16 | . . . . . . . . 1 . . . 2 . . . . 2 . 3 . . . . . . 1 . . . . . . . . 3 2 1 1 Hackware 22 | . . . . . 1 1 1 . . . . 6 . . . . 5 . . . . . . 3 . 1 . . . . 2 . . 1 1 . . . Protection 103 | . 1 1 . 2 10 1 4 . 2 1 4 8 4 1 . 1 7 . 3 1 3 5 1 10 . 7 2 2 . 5 8 2 5 2 . . . . Artifact . | . . . . . . . . . . . . . . . . . . . . . . . . . . . . . . . . . . . . . . . Weapon 207 | 2 13 4 2 2 39 10 12 2 2 6 2 7 2 2 . . 12 . 3 8 4 . 2 7 . . 4 2 . 3 5 8 10 4 7 1 13 7 Energy Gun 30 | . . . . . 5 2 3 . . . . . . . . . 1 . 1 4 1 . 1 3 . . . 1 . . . 1 . . 2 . 5 . Energy Cannon 13 | . 2 . . . . . . . . . . . . . . . 2 . . . . . . . . . . . . . . 1 4 1 2 . 1 . Ballistic Gun 36 | 2 8 2 1 1 14 2 2 . . 1 1 2 . . . . . . . . . . . . . . . . . . . . . . . . . . Ballistic Cannon 16 | . . . . . 2 2 3 . . 1 . . . . . . . . . . . . . . . . . . . 2 3 2 1 . . . . . Launcher 14 | . . 1 . . 2 1 . . 1 1 1 1 . 1 . . 2 . 1 . 1 . . . . . . . . . 1 . . . . . . . Special Weapon 2 | . . . . . . 1 1 . . . . . . . . . . . . . . . . . . . . . . . . . . . . . . . Impact Weapon 44 | . 3 . . . 12 2 2 1 1 1 . 2 . . . . 1 . 1 4 2 . 1 . . . 1 . . 1 . 3 1 1 . . 1 3 Slashing Weapon 40 | . . . . 1 4 . 1 1 . 1 . 2 1 1 . . 6 . . . . . . 2 . . 2 1 . . . . 2 1 3 1 6 4 Piercing Weapon 8 | . . . . . . . . . . . . . 1 . . . . . . . . . . 2 . . 1 . . . 1 1 2 . . . . . Special Melee Weapon 4 | . . 1 1 . . . . . . 1 . . . . . . . . . . . . . . . . . . . . . . . 1 . . . . Unidentified Prototypes 55 | . . 1 . . 8 3 1 . . 1 . 2 . . . . 5 . 9 . 1 4 . . . . . 1 . . . 3 . 2 5 . 8 1 Corrupted Parts 2 | . . . . 1 . . . . . . . . . . . . . . . . . . . . . . . . . 1 . . . . . . . . System Corruption 14 | . . . . 4 . . . . . . . . . . . . . . . . . . . . . . . . . 10 . . . . . . . . Parts Lost 24 | . 1 . . . 5 . 2 . . . . 5 . . . . . . . . . . . 3 . . . 1 . 4 1 . . . . . 1 1 Power 2 | . . . . . . . . . . . . 1 . . . . . . . . . . . . . . . . . 1 . . . . . . . . Propulsion 7 | . 1 . . . . . 1 . . . . 3 . . . . . . . . . . . 1 . . . . . . 1 . . . . . . . Utility 10 | . . . . . 2 . 1 . . . . 1 . . . . . . . . . . . 2 . . . . . 2 . . . . . . 1 1 Weapon 5 | . . . . . 3 . . . . . . . . . . . . . . . . . . . . . . 1 . 1 . . . . . . . . Highest Loss Streak 5 | . 1 . . . 2 . 1 . . . . 5 . . . . . . . . . . . 3 . . . 1 . 4 1 . . . . . 1 1 To Critical Strikes . | . . . . . . . . . . . . . . . . . . . . . . . . . . . . . . . . . . . . . . . Average Slot Usage (%) 91 | . 99 100 100 100 99 99 96 100 97 91 92 87 86 86 86 86 93 94 93 94 93 89 88 88 89 89 88 88 89 88 87 89 85 85 77 72 71 70 Engine 4 | . 14 14 14 14 5 9 7 7 7 7 7 5 6 6 6 6 . . . . . . . . . . . . . . 1 . . . . . . . Reactor 2 | . . . . . . . . . . . . . . . . . . . . 5 5 5 5 4 5 5 4 5 5 4 6 9 7 8 9 9 9 8 Treads 5 | . 14 14 14 14 9 9 15 15 15 15 15 3 . . . . . . . . . . . . . . . . . . . . . . . . . . Wheel 8 | . 13 14 14 13 17 18 15 23 23 21 23 4 . . . . . . . . . . . . . . . . . . . . . . . . . . Flight 9 | . . . . . . . . . . . . 14 20 20 20 20 22 23 23 23 23 20 17 14 15 15 15 15 15 15 17 19 17 17 10 . . . Device 11 | . 4 . . . 8 14 7 14 12 2 6 8 7 6 6 9 10 11 10 5 4 5 9 13 15 15 15 13 15 17 16 17 16 19 20 28 34 29 Storage 7 | . 14 14 14 14 9 9 7 7 7 7 7 6 6 6 6 6 5 5 5 5 5 5 5 5 5 5 5 5 5 5 4 4 4 4 6 9 8 . Processor 3 | . . . . . . . . 6 7 7 7 6 6 6 6 6 5 5 5 5 5 5 5 5 5 5 5 5 5 5 4 4 4 4 2 . . 15 Hackware 11 | . . . . . . 1 10 . . . . 17 9 6 6 6 20 23 23 23 23 23 23 25 26 25 21 21 21 21 22 23 21 15 8 . . . Protection 9 | . 9 13 14 14 25 19 11 7 7 12 7 5 15 19 20 16 7 5 4 10 11 9 6 6 5 5 10 11 10 7 2 1 4 6 5 . . . Energy Gun 1 | . . . . . . . 2 . . . . . . . . . . 5 4 1 . . . 4 5 5 . . . . . . . . 3 17 . . Ballistic Gun 4 | . 19 26 19 28 4 9 7 1 . 1 6 1 . . . . . . . . . . . . . . . . . . . . . . . . . . Ballistic Cannon 1 | . . . . . 3 5 1 1 . . 7 1 . . . . . . . . . . . . . . . . . . 2 3 1 . . . . . Impact Weapon 2 | . 4 . . . 5 . 1 5 7 3 . 2 . . . . . . . 3 4 5 4 . . . 4 5 5 4 4 3 2 . . . . 3 Slashing Weapon 4 | . . . . . 3 . 1 5 7 6 . 7 12 12 13 13 10 5 5 5 5 5 5 4 5 5 4 4 5 4 . . 2 4 4 . 7 4 Naked Turns . | . . . . . . . . . . . . . . . . . . . . . . . . . . . . . . . . . . . . . . . Heaviest Build 132 | 10 56 56 56 57 132 130 128 124 124 119 120 121 28 30 28 27 31 30 35 39 35 35 35 50 47 50 50 53 48 53 57 55 58 67 65 76 70 64 Greatest Support 89 | 10 40 12 12 40 28 28 38 38 38 38 38 38 31 31 31 31 32 32 49 35 35 37 37 54 54 54 54 54 54 54 61 61 72 69 89 80 80 80 Greatest Overweight (x) 10 | . 5 4 4 4 5 4 10 3 3 4 3 7 . . . . 1 . . 1 . 1 . . . . 2 . . . . . . 3 . . . . Average Overweight (x) . | . 3 4 4 3 3 4 3 3 2 3 3 . . . . . . . . . . . . . . . . . . . . . . . . . . . Largest Inventory Capacity 25 | 8 20 20 20 20 25 25 25 25 25 25 25 25 10 10 10 10 10 10 10 10 10 10 10 15 15 15 15 15 15 15 15 15 15 15 17 17 17 7 Average Capacity 17 | 6 18 20 20 20 22 25 25 25 25 25 25 14 10 10 10 10 10 10 10 10 10 10 10 10 15 15 15 15 15 15 15 15 15 15 16 17 16 7 Most Carried 25 | 4 20 20 20 20 25 25 25 25 25 25 25 25 10 10 10 10 10 10 10 10 10 10 10 15 15 15 15 15 15 15 15 15 15 15 17 17 17 7 Average Carried 16 | 2 17 19 20 19 21 24 24 24 25 24 24 13 10 9 10 10 9 10 9 10 9 9 10 10 15 14 14 14 15 14 14 14 14 14 15 16 14 6 Final Capacity 25 | 8 20 20 20 20 25 25 25 25 25 25 25 10 10 10 10 10 10 10 10 10 10 10 10 15 15 15 15 15 15 15 15 15 15 15 17 17 7 7 Final Carried 25 | 4 20 20 20 20 25 25 25 25 25 25 25 10 10 10 10 10 10 10 10 10 10 10 10 15 15 14 15 15 15 14 15 15 15 15 17 16 7 6 Class Distribution -------------------- 26% | Mutant 21% | Hacker-Sprinter 20% | Wizard-Sprinter 5% | Commander-Mutant 5% | Trapper-Mutant 4% | Alien-Sigix 4% | Hacker-Mutant 4% | Derelict-Sprinter Dominant Class ---------------- Mutant | -10/Materials Commander-Mutant | -10/Mines Commander-Mutant | -10/Exiles Mutant | -9/Mines Mutant | -8/Materials Commander-Mutant | -8/Storage Hacker-Mutant | -7/Factory Trapper-Mutant | -7/Lower Caves Mutant | -7/Lower Caves Mutant | -7/Zion Trapper-Mutant | -6/Proximity Caves Hacker-Sprinter | -6/Factory Derelict-Sprinter | -6/Lower Caves Derelict-Sprinter | -6/Lower Caves Derelict-Sprinter | -6/Data Miner Derelict-Sprinter | -5/Proximity Caves Hacker-Sprinter | -5/Factory Hacker-Sprinter | -5/Waste Hacker-Sprinter | -5/Factory Hacker-Sprinter | -5/Upper Caves Hacker-Sprinter | -5/Upper Caves Hacker-Sprinter | -5/Zhirov Hacker-Sprinter | -4/Proximity Caves Wizard-Sprinter | -4/Factory Wizard-Sprinter | -4/Waste Wizard-Sprinter | -4/Factory Hacker-Sprinter | -4/Extension Hacker-Sprinter | -4/Cetus Hacker-Sprinter | -4/Archives Hacker-Sprinter | -4/Hub_04(d) Wizard-Sprinter | -3/Research Wizard-Sprinter | -3/Testing Wizard-Sprinter | -2/Research Hacker-Sprinter | -2/Quarantine Hacker-Sprinter | -2/Section 7 Alien-Sigix | -1/Access Alien-Sigix | -1/Command Alien-Sigix | -1/Access_0 Resources | -11 -10 -10 -10 -9 -8 -8 -7 -7 -7 -7 -6 -6 -6 -6 -6 -5 -5 -5 -5 -5 -5 -5 -4 -4 -4 -4 -4 -4 -4 -4 -3 -3 -2 -2 -2 -1 -1 -1 ----------- Run | Jun Mat Min Exi Min Mat Sto Fac Low Low Zio Pro Fac Low Low Dat Pro Fac Was Fac Upp Upp Zhi Pro Fac Was Fac Ext Cet Arc Hub Res Tes Res Qua Sec Acc Com Ac0 Matter Collected 10340 | 260 597 82 34 156 1151 197 591 153 73 80 374 777 133 132 . 40 494 30 396 37 333 48 116 535 . 210 150 85 20 227 622 255 511 140 463 . 662 176 Remotely . | . . . . . . . . . . . . . . . . . . . . . . . . . . . . . . . . . . . . . . . Salvage Created 13757 | . 657 14 . 140 1812 98 745 89 46 . 192 705 185 74 . . 377 206 565 . 162 48 18 761 . 329 475 74 117 181 779 230 549 140 601 . 2575 813 Parts 590 | . 36 1 . 8 70 5 47 3 4 . 12 24 10 7 . . 34 1 25 . 11 4 . 43 . 25 23 2 6 8 19 10 27 4 26 . 81 14 Haulers Intercepted 14 | . 2 . . . 5 1 . . . . . 1 . . . . 1 . 3 . . . . 1 . . . . . . . . . . . . . . Recyclers Shooed 7 | . 2 . . . . . 4 . . . . . . . . . . . . . . . . . . . . . . . . . 1 . . . . . Parts Field Recycled . | . . . . . . . . . . . . . . . . . . . . . . . . . . . . . . . . . . . . . . . Retrieved Matter . | . . . . . . . . . . . . . . . . . . . . . . . . . . . . . . . . . . . . . . . Parts Self-Destructed 49 | . . . . . . . . . 3 . 16 . 9 4 . 5 . . . . 8 4 . . . . . . . . . . . . . . . . Prevented 16 | . . . . . . . . 3 . . 6 . 4 . . . . . . . . . 3 . . . . . . . . . . . . . . . Kills | -11 -10 -10 -10 -9 -8 -8 -7 -7 -7 -7 -6 -6 -6 -6 -6 -5 -5 -5 -5 -5 -5 -5 -4 -4 -4 -4 -4 -4 -4 -4 -3 -3 -2 -2 -2 -1 -1 -1 ------- Run | Jun Mat Min Exi Min Mat Sto Fac Low Low Zio Pro Fac Low Low Dat Pro Fac Was Fac Upp Upp Zhi Pro Fac Was Fac Ext Cet Arc Hub Res Tes Res Qua Sec Acc Com Ac0 Combat Hostiles Destroyed 181 | . 16 3 . 8 32 . 15 1 3 . 7 11 3 4 . . 9 1 . . 5 . . 3 . 5 5 1 1 4 9 2 2 . 3 . 19 9 Melee 56 | . 2 . . . 10 . . . . . . . 2 . . . 1 . . . 1 . . 2 . 5 3 . 1 2 1 1 . . 3 . 18 4 Guns 43 | . 9 . . 8 8 . 13 . . . 1 3 . . . . . 1 . . . . . . . . . . . . . . . . . . . . Cannons 16 | . 4 . . . 3 . 1 . . . 2 5 . . . . . . . . . . . . . . . . . . . . . . . . . 1 AOE 37 | . . 3 . . 2 . 1 . 3 . 4 3 . 4 . . 8 . . . 4 . . . . . . . . . 5 . . . . . . . Classes Destroyed 21 | . 5 . . 2 4 1 4 1 . . . . 1 . . . . 1 . . . . . . . . . . . 1 . . . . 1 . . . Worker 3 | . . . . . . . 1 . . . . . . . . . . . . . . . . 1 . . . . . . 1 . . . . . . . Builder 9 | . . . . . . . 1 . . . . 1 . . . . 2 . . . . . . 1 . 2 . . . . . 2 . . . . . . Tunneler 1 | . . . . . 1 . . . . . . . . . . . . . . . . . . . . . . . . . . . . . . . . . Hauler 14 | . 2 . . . 5 1 . . . . . 1 . . . . 1 . 3 . . . . 1 . . . . . . . . . . . . . . Recycler 16 | . . . . . 1 . 2 . . . . 2 . . . . . . 1 . . . . 1 . . . . . . 2 . 1 1 1 . 4 . Minesweeper 5 | . . . . . . . . 1 . . 1 . . 1 . . . . . . 1 . 1 . . . . . . . . . . . . . . . Mechanic 1 | . . . . . . 1 . . . . . . . . . . . . . . . . . . . . . . . . . . . . . . . . Operator 7 | . 1 . . . 1 2 2 . . . . . . . . . . . . . . . . . . . . . 1 . . . . . . . . . Watcher 44 | . 3 . . . 3 . . . . . . 1 . . . . 5 . 5 . . . . 6 . 4 . . . 1 5 2 4 . 4 . 1 . Swarmer 57 | . 3 3 . 2 3 . 8 . 3 . 4 4 . 4 . . 9 . . . 4 . . . . 5 . . . . 5 . . . . . . . Cutter 3 | . . . . . . . . . . . . . . . . . . . . . . . . . . . . . . 3 . . . . . . . . Grunt 56 | . 13 . . 2 20 . 3 . . . 3 5 1 . . . . . . . 1 . . 1 . . 2 . . 1 4 . . . . . . . Duelist 3 | . . . . . 1 . . . . . . 1 1 . . . . . . . . . . . . . . . . . . . . . . . . . Sentry 17 | . . . . . 8 . 2 1 . . . . . . . . . . . . . . . 1 . . 1 . 1 . . . . . 1 . 2 . Demolisher 2 | . . . . 2 . . . . . . . . . . . . . . . . . . . . . . . . . . . . . . . . . . Hunter 8 | . . . . . . . 1 . . . . . . . . . . . . . . . . . . . . . . . . . . . . . 7 . Programmer 10 | . . . . . . . 1 . . . . 1 . . . . . . . . . . . . . . . . . . . 2 . . . . 6 . Behemoth 6 | . . . . . . . . . . . . . 1 . . . . . . . . . . 1 . . 2 . . . . . 2 . . . . . Compactor 1 | . . . . . . . . . . . . . . . . . . 1 . . . . . . . . . . . . . . . . . . . . Cetus Guard 1 | . . . . . . . . . . . . . . . . . . . . . . . . . . . . 1 . . . . . . . . . . M Guard 1 | . . . . . . . . . . . . . . . . . . . . . . . . . . . . . . . . . . . . . 1 . Enhanced Grunt 4 | . . . . . . . . . . . . . . . . . . . . . . . . . . . . . . . . . . . . . . 4 Enhanced Sentry 1 | . . . . . . . . . . . . . . . . . . . . . . . . . . . . . . . . . . . . . . 1 Combat Programmer 2 | . . . . . . . . . . . . . . . . . . . . . . . . . . . . . . . . . . . . . 2 . Executioner 2 | . . . . . . . . . . . . . . . . . . . . . . . . . . . . . . . . . . . 2 . . . Assembled 2 | . . . . 2 . . . . . . . . . . . . . . . . . . . . . . . . . . . . . . . . . . Best Kill Streak 6 | . 6 3 . 2 5 1 5 1 3 . 4 3 2 4 . . 4 1 2 . 4 . 1 2 . 5 2 1 2 3 6 2 1 1 2 . 4 3 Combat Bots Only 6 | . 6 3 . 2 3 . 4 1 3 . 4 3 2 4 . . 4 1 . . 4 . . 1 . 5 2 1 1 2 5 2 1 . 2 . 2 3 Max Kills in Single Turn 4 | . 1 2 . 1 2 1 2 1 3 . 2 2 1 3 . . 3 1 1 . 2 . 1 1 . 1 1 1 1 1 4 1 1 1 1 . 1 1 Gunslinging 1 | . . . . . 1 . . . . . . . . . . . . . . . . . . . . . . . . . . . . . . . . . Exploded 3 | . . 2 . . 2 . 1 . 3 . 2 2 . 3 . . 3 . . . 2 . . . . . . . . . 3 . . . . . . . Melee 1 | . 1 . . . 1 . . . . . . . 1 . . . 1 . . . 1 . . 1 . 1 1 . 1 1 1 1 . . 1 . 1 1 Uniques/NPCs Destroyed 5 | . . . . . . . . . . . . . . . . . . . . . . . . . . . . . . . . . . . . . 1 4 MAIN.C Shell (-1/Command) A8 (-1/Access_0) A6 (-1/Access_0) A2 (-1/Access_0) A5 (-1/Access_0) Combat | -11 -10 -10 -10 -9 -8 -8 -7 -7 -7 -7 -6 -6 -6 -6 -6 -5 -5 -5 -5 -5 -5 -5 -4 -4 -4 -4 -4 -4 -4 -4 -3 -3 -2 -2 -2 -1 -1 -1 -------- Run | Jun Mat Min Exi Min Mat Sto Fac Low Low Zio Pro Fac Low Low Dat Pro Fac Was Fac Upp Upp Zhi Pro Fac Was Fac Ext Cet Arc Hub Res Tes Res Qua Sec Acc Com Ac0 Damage Taken 13711 | . 464 9 . 249 1262 9 781 141 66 . 89 1476 433 64 . . 378 . . . 110 . . 440 . 197 198 195 27 1555 441 253 182 48 614 72 2883 1075 Core 2596 | . 27 . . . 122 2 25 16 . . . 74 78 13 . . 90 . . . . . . 32 . 31 82 14 . 474 55 . 85 . 162 21 854 339 Absorbed by Shields 3487 | . . . . . 240 16 . . . . . . . . . . . . . . . . . . . . 10 . . . . . . . . 27 2108 1086 Redirected to Shielding 763 | . . . . . . . 46 . . . 11 . 47 11 . . 77 . . . 57 . . 74 . 36 . 75 . 159 52 83 . . 35 . . . Regen/Repaired (Parts) 3626 | . . . . . 101 11 74 . . 307 . 32 . . . . 300 . 52 . 26 . . 484 . 47 120 59 27 14 1316 193 66 . 253 . 105 39 Core Remaining (%) 79 | 100 . . . 89 . 77 . . . . 94 . . . . 80 . . . . . . 91 . . . . . . 44 . 95 . . 80 . . 43 Volleys Fired 422 | . 44 4 . 12 45 10 57 . 1 . 21 33 . 5 . . 12 4 16 27 4 . 1 18 . 27 . . . 4 20 12 17 7 12 5 2 2 Largest 2 | . 2 2 . 2 2 2 2 . 1 . 2 2 . 1 . . 1 1 1 1 1 . 1 1 . 1 . . . 1 1 1 1 1 2 1 1 1 Hottest 300 | . 120 46 . 46 86 73 85 . 36 . 73 73 . 36 . . 98 94 94 94 94 . 94 94 . 94 . . . 65 65 65 120 120 200 100 100 300 Shots Fired 620 | . 88 6 . 24 83 14 104 . 1 . 39 63 . 5 . . 12 4 16 27 4 . 1 18 . 27 . . . 4 20 12 17 7 15 5 2 2 Gun 412 | . 68 4 . 24 58 4 92 . . . 18 30 . . . . 3 4 16 27 1 . 1 18 . 27 . . . . . . . . 10 5 2 . Cannon 171 | . 20 . . . 22 6 10 . . . 18 31 . . . . 1 . . . . . . . . . . . . 4 16 12 17 7 5 . . 2 Launcher 32 | . . 2 . . 3 1 . . 1 . 3 2 . 5 . . 8 . . . 3 . . . . . . . . . 4 . . . . . . . Special 5 | . . . . . . 3 2 . . . . . . . . . . . . . . . . . . . . . . . . . . . . . . . Kinetic 404 | . 68 4 . 24 78 10 84 . . . 36 61 . . . . . . . . . . . . . . . . . 4 16 12 7 . . . . . Thermal 149 | . 20 . . . 2 3 2 . . . . . . . . . 4 4 16 27 1 . 1 18 . 27 . . . . . . 10 7 5 . . 2 Explosive 32 | . . 2 . . 3 1 . . 1 . 3 2 . 5 . . 8 . . . 3 . . . . . . . . . 4 . . . . . . . Electromagnetic 18 | . . . . . . . 18 . . . . . . . . . . . . . . . . . . . . . . . . . . . . . . . Slashing 17 | . . . . . . . . . . . . . . . . . . . . . . . . . . . . . . . . . . . 10 5 2 . Robot Hit Streak 13 | . 13 2 . 13 8 5 12 . . . 5 8 . . . . 4 1 1 . 2 . . 2 . 2 . . . 1 1 1 2 . . . 1 3 Robot Miss Streak 7 | . 5 3 . 5 6 1 4 . . . 4 7 . . . . . 3 1 . 4 . . . . 1 . . . 2 1 . 2 . . . . . Penetration Max . | . . . . . . . . . . . . . . . . . . . . . . . . . . . . . . . . . . . . . . . Secondary Targets 8 | . . . . 2 1 . 5 . . . . . . . . . . . . . . . . . . . . . . . . . . . . . . . Max Gunslinging Chain 1 | . . . . 1 1 . 1 . . . . . . . . . . . . . . . . . . . . . . . . . . . . . . . Shots Hit Robots 660 | . 69 5 4 20 124 9 61 6 . 1 21 45 9 1 . . 20 1 19 . 5 1 2 27 . 16 12 7 2 9 22 11 10 1 14 . 75 31 Core Hits 310 | . 36 3 . 15 49 4 34 . 3 . 13 24 2 6 . . 21 1 8 . 7 1 . 14 . 10 4 . 1 2 10 2 5 1 6 . 21 7 Critical Kills 5 | . 1 . . . . . . . . . . 1 . . . . . 1 . . . . . . . . . . . . 1 1 . . . . . . Critical Parts Destroyed 30 | . 1 . . . 9 1 . 2 . . 1 1 . . . . . . . . . . . . . 1 1 3 . . 6 3 . . . . . 1 Critical Strikes 52 | . 2 . . . 11 1 . 3 . . 2 3 . . . . . 2 1 . 1 . . 1 . 2 1 3 . 1 8 4 . . 1 . 2 3 Destroy 8 | . 1 . . . 1 . . . . . 1 1 . . . . . 2 . . . . . . . 1 . . . . . . . . . . . 1 Blast 2 | . . . . . . . . . . . 1 1 . . . . . . . . . . . . . . . . . . . . . . . . . . Smash 29 | . 1 . . . 9 1 . 2 . . . 1 . . . . . . . . . . . . . . 1 3 . . 7 4 . . . . . . Sever 12 | . . . . . 1 . . 1 . . . . . . . . . . 1 . 1 . . 1 . 1 . . . 1 . . . . 1 . 2 2 Impale 1 | . . . . . . . . . . . . . . . . . . . . . . . . . . . . . . . 1 . . . . . . . Melee Attacks 1055 | . 12 2 4 . 90 3 10 10 8 2 . 96 46 9 . 13 89 2 53 26 19 1 16 74 . 71 16 9 3 27 85 34 59 13 22 1 92 38 Kinetic 9 | . . . . . . . . . . . . . . . . . . . . . . . . . . . . . . . . . . . . . 3 6 Impact 317 | . 12 . . . 73 3 8 6 6 1 . 31 . . . . . . . 1 9 . 5 . . . 3 7 . 16 76 33 27 . . . . . Slashing 698 | . . . . . 17 . 2 4 2 . . 65 39 9 . 13 89 2 53 25 10 1 11 73 . 71 11 2 3 11 . . 28 13 22 1 89 32 Piercing 24 | . . . . . . . . . . . . . 7 . . . . . . . . . . 1 . . 2 . . . 9 1 4 . . . . . Sneak Attacks 85 | . . 2 4 . 8 3 2 1 . 1 . 4 2 1 . . 6 . 6 . 1 . 2 6 . 4 6 . 1 . 5 3 3 1 4 . 9 . Combat Hostiles 14 | . . . . . 1 . . . . . . . 2 . . . . . . . . . . . . 1 5 . . . . . . . 1 . 4 . Follow-up Attacks 34 | . . . . . 9 . . 3 . . . 5 2 . . . 3 . . . 1 . 1 . . . 1 1 . 2 4 . 2 . . . . . Damage Inflicted 44668 | . 1174 219 . 302 4055 359 1840 315 162 . 764 1625 368 407 . . 1821 60 1328 . 407 136 217 1689 . 929 879 446 152 603 2363 922 550 182 1911 . 14125 4358 Guns 3728 | . 773 29 . 302 718 65 1062 . . . 177 330 . . . . . 60 30 . . . . 30 . 90 . . . . . . . . . . 62 . Cannons 2224 | . 246 . . . 376 . 112 . . . 275 453 . . . . . . . . . . . . . . . . . 44 32 46 40 . . . . 600 Explosions 3434 | . . 190 . . 244 . 499 . 162 . 312 216 . 310 . . 690 . . . 150 . . . . . . . . . 661 . . . . . . . Melee 35148 | . 155 . . . 2717 272 155 315 . . . 626 368 97 . . 1131 . 1298 . 257 136 217 1659 . 839 879 446 152 559 1670 876 510 182 1811 . 14063 3758 Ramming 100 | . . . . . . . . . . . . . . . . . . . . . . . . . . . . . . . . . . . 100 . . . Kinetic 4929 | . 773 29 . 302 1050 65 902 . . . 452 783 . . . . . . . . . . . . . . . . . 44 32 46 . . . . 227 224 Thermal 1349 | . 246 . . . 44 22 187 . . . . . . . . . . 60 30 . . . . 30 . 90 . . . . . . 40 . . . . 600 Explosive 3259 | . . 190 . . 244 . 324 . 162 . 312 216 . 310 . . 690 . . . 150 . . . . . . . . . 661 . . . . . . . Electromagnetic 272 | . . . . . . . 272 . . . . . . . . . . . . . . . . . . . . . . . . . . . . . . . Impact 7037 | . 155 . . . 2202 272 . 238 . . . 335 . . . . . . . . 87 . 124 . . . 252 380 . 419 1462 876 235 . . . . . Slashing 27438 | . . . . . 515 . 155 77 . . . 291 292 97 . . 1131 . 1298 . 170 136 93 1659 . 839 627 66 152 140 . . 275 182 1811 . 13898 3534 Piercing 284 | . . . . . . . . . . . . . 76 . . . . . . . . . . . . . . . . . 208 . . . . . . . Highest Corruption 17 | . . . . 4 . . 1 . . . . . . . . . . . . . . . . . . . . . . 17 . . 1 . . . . . Average Corruption 1 | . . . . 4 . . 1 . . . . . . . . . . . . . . . . . . . . . . 6 . . 1 . . . . . Corruption Purged 2 | . . . . . . . 1 . . . . . . . . . . . . . . . . . . . . . . . . . 1 . . . . . Corruption Blocked . | . . . . . . . . . . . . . . . . . . . . . . . . . . . . . . . . . . . . . . . Effects 7 | . . . . . . . 2 . . . . . . . . . . . . . . . . . . . . . . 2 . . 3 . . . . . Message Errors 1 | . . . . . . . 1 . . . . . . . . . . . . . . . . . . . . . . . . . . . . . . . Matter Fused 1 | . . . . . . . . . . . . . . . . . . . . . . . . . . . . . . . . . 1 . . . . . Heat Flow Errors 2 | . . . . . . . . . . . . . . . . . . . . . . . . . . . . . . 1 . . 1 . . . . . Energy Discharges 1 | . . . . . . . 1 . . . . . . . . . . . . . . . . . . . . . . . . . . . . . . . Data Loss (major) 1 | . . . . . . . . . . . . . . . . . . . . . . . . . . . . . . . . . 1 . . . . . Misdirections 1 | . . . . . . . . . . . . . . . . . . . . . . . . . . . . . . 1 . . . . . . . . Overload Shots . | . . . . . . . . . . . . . . . . . . . . . . . . . . . . . . . . . . . . . . . Overflow Damage 8268 | . 78 15 . . 599 138 123 187 30 . 15 213 13 77 . . 197 . 134 . 94 . 130 7 . 122 225 236 60 178 945 477 111 . 482 . 2834 548 Projectiles 239 | . . . . . 40 . . . . . 6 4 . . . . . . . . . . . . . . . . . 5 . 84 . . . . . 100 Explosions 261 | . . 15 . . . . 82 . 30 . 9 20 . . . . 41 . . . 2 . . . . . . . . . 62 . . . . . . . Melee 7768 | . 78 . . . 559 138 41 187 . . . 189 13 77 . . 156 . 134 . 92 . 130 7 . 122 225 236 60 173 883 393 111 . 482 . 2834 448 Knockbacks 38 | . . . . . 4 1 . . . . 2 8 . . . . . . . . . . 1 . . . 1 2 . 2 6 9 2 . . . . . Impact 24 | . . . . . 2 1 . . . . . 2 . . . . . . . . . . 1 . . . 1 2 . 1 6 6 2 . . . . . Kinetic 10 | . . . . . 2 . . . . . 2 5 . . . . . . . . . . . . . . . . . 1 . . . . . . . . Secondary 4 | . . . . . . . . . . . . 1 . . . . . . . . . . . . . . . . . . . 3 . . . . . . Self-Inflicted Damage 293 | . . . . . 63 . 120 . . . . 65 . . . . . . . . 45 . . . . . . . . . . . . . . . . . Shots 9 | . . . . . 3 . 2 . . . . 2 . . . . . . . . 2 . . . . . . . . . . . . . . . . . Rammed . | . . . . . . . . . . . . . . . . . . . . . . . . . . . . . . . . . . . . . . . Targets Rammed 2 | . . . . . . . . . . . . . . . . . . . . . . . . . . . . . . . . . . . 2 . . . Kicked 2 | . . . . . . . . . . . . . . . . . . . . . . . . . . . . . . . . . . . 2 . . . Crushed . | . . . . . . . . . . . . . . . . . . . . . . . . . . . . . . . . . . . . . . . Highest Temperature 333 | . 117 . . 19 320 48 325 . 6 . 175 333 . 3 . . 56 154 144 280 96 . 50 132 . 132 1 . . 234 245 237 264 36 280 . 60 40 Average Temperature 66 | . 40 . . 13 78 14 65 . 4 . 50 121 . 3 . . 26 82 43 131 54 . 27 40 . 41 1 . . 61 57 44 74 15 70 . 60 24 Received Heat Transfer 2359 | . 201 . . 44 649 . 141 63 . . 45 342 51 . . . 36 . . . 9 . . 63 . . 45 36 . 123 160 39 . . 108 . 201 3 Effects 10 | . . . . . 1 . . . . . . 3 . . . . . . . 3 . . . . . . . . . . 1 1 1 . . . . . Shutdowns 1 | . . . . . 1 . . . . . . . . . . . . . . . . . . . . . . . . . . . . . . . . . Energy Bleed 2 | . . . . . . . . . . . . . . . . . . . . 1 . . . . . . . . . . . . 1 . . . . . Interference 6 | . . . . . . . . . . . . 2 . . . . . . . 2 . . . . . . . . . . 1 1 . . . . . . Damage (minor) 1 | . . . . . . . . . . . . 1 . . . . . . . . . . . . . . . . . . . . . . . . . . Siege Activations . | . . . . . . . . . . . . . . . . . . . . . . . . . . . . . . . . . . . . . . . Robots Corrupted . | . . . . . . . . . . . . . . . . . . . . . . . . . . . . . . . . . . . . . . . Combat Hostiles . | . . . . . . . . . . . . . . . . . . . . . . . . . . . . . . . . . . . . . . . Parts Fried 60 | . 2 . . . 16 . . 1 . . . 3 . . . . . . . . . . 1 . . 3 . 1 . 7 17 6 3 . . . . . Impact Corruptions 94 | . 2 . . . 22 3 . 4 . . . 5 . . . . . . . . . . 3 . . . 3 5 . 6 22 17 2 . . . . . Robots Melted . | . . . . . . . . . . . . . . . . . . . . . . . . . . . . . . . . . . . . . . . Combat Hostiles . | . . . . . . . . . . . . . . . . . . . . . . . . . . . . . . . . . . . . . . . Parts Melted 6 | . 3 . . . . 1 1 . . . 1 . . . . . . . . . . . . . . . . . . . . . . . . . . . Heat Transferred 1199 | . 518 . . . 74 74 237 . . . . . . . . . . 74 37 . . . . 37 . 111 . . . . . . 37 . . . . . Parts Sabotaged . | . . . . . . . . . . . . . . . . . . . . . . . . . . . . . . . . . . . . . . . Parts Stolen . | . . . . . . . . . . . . . . . . . . . . . . . . . . . . . . . . . . . . . . . Parts Stripped . | . . . . . . . . . . . . . . . . . . . . . . . . . . . . . . . . . . . . . . . Power Chain Reactions 1 | . . . . . . . 1 . . . . . . . . . . . . . . . . . . . . . . . . . . . . . . . Missiles Intercepted . | . . . . . . . . . . . . . . . . . . . . . . . . . . . . . . . . . . . . . . . Alert | -11 -10 -10 -10 -9 -8 -8 -7 -7 -7 -7 -6 -6 -6 -6 -6 -5 -5 -5 -5 -5 -5 -5 -4 -4 -4 -4 -4 -4 -4 -4 -3 -3 -2 -2 -2 -1 -1 -1 ------- Run | Jun Mat Min Exi Min Mat Sto Fac Low Low Zio Pro Fac Low Low Dat Pro Fac Was Fac Upp Upp Zhi Pro Fac Was Fac Ext Cet Arc Hub Res Tes Res Qua Sec Acc Com Ac0 Peak Influence 1829 | . 276 104 . 100 398 537 530 . . . . 266 . . . . 498 228 803 . . . . 195 15 681 532 262 280 596 414 265 191 191 1829 1615 1436 . Initial 1100 | . . 19 . . . 147 207 . . . . . . . . . 300 120 159 . . . . . 15 10 203 . 104 98 302 138 . 48 13 1100 1100 . Average 232 | . 48 29 . 24 248 308 384 . . . . 78 . . . . 281 159 164 . . . . 89 15 409 245 204 235 442 184 103 53 111 405 1147 1271 . Maximum Alert Level 5 | . 1 . . . 1 2 2 . . . . 1 . . . . 2 1 3 . . . . . . 2 2 1 1 2 2 1 . . 5 5 5 . Low Security (%) 58 | 100 98 100 . 100 33 22 . . . . . 94 . . . . 30 76 78 . . . . 100 100 2 37 29 28 8 54 71 100 100 79 . . . Level 1 25 | . 1 . . . 66 55 56 . . . . 5 . . . . 44 23 6 . . . . . . 37 44 70 71 6 45 28 . . . . . . Level 2 10 | . . . . . . 22 42 . . . . . . . . . 25 . 12 . . . . . . 60 18 . . 84 . . . . . . . . Level 3 . | . . . . . . . . . . . . . . . . . . . 1 . . . . . . . . . . . . . . . . 20 . . Level 4 4 | . . . . . . . . . . . . . . . . . . . . . . . . . . . . . . . . . . . . 74 99 . Level 5 . | . . . . . . . . . . . . . . . . . . . . . . . . . . . . . . . . . . . . . . . High Security . | . . . . . . . . . . . . . . . . . . . . . . . . . . . . . . . . . . . . . . . Max Security . | . . . . . . . . . . . . . . . . . . . . . . . . . . . . . . . . . . . 20 4 . . Squads Dispatched 112 | . 4 . . . 2 4 8 . . . . 10 . . . . 7 . 6 . . . . 10 . 9 . . . 11 6 3 5 1 14 7 5 . Investigation 27 | . 4 . . . 1 2 1 . . . . 2 . . . . 4 . 1 . . . . 4 . 2 . . . 1 1 . 3 . . . 1 . Extermination 25 | . . . . . . . 2 . . . . 3 . . . . 3 . . . . . . 4 . 1 . . . 1 3 2 2 1 1 1 1 . Reinforcement 25 | . . . . . 1 2 2 . . . . 3 . . . . . . 3 . . . . 2 . 2 . . . 6 2 1 . . 1 . . . Assault 29 | . . . . . . . . . . . . 1 . . . . . . 1 . . . . . . 3 . . . 3 . . . . 12 6 3 . Garrison 6 | . . . . . . . 3 . . . . 1 . . . . . . 1 . . . . . . 1 . . . . . . . . . . . . Intercept . | . . . . . . . . . . . . . . . . . . . . . . . . . . . . . . . . . . . . . . . Searches Triggered . | . . . . . . . . . . . . . . . . . . . . . . . . . . . . . . . . . . . . . . . Data Miner Redirects 17 | . . . . . . . . . . . . . . . . . 2 . 1 . . . . 1 . 4 . . . 2 1 . 2 . . . 4 . Construction Impeded 2 | . . . . . . . . . . . . . . . . . . . 1 . . . . . . 1 . . . . . . . . . . . . Haulers Reinforced 2 | . . . . . . . . . . . . . . . . . . . 2 . . . . . . . . . . . . . . . . . . . Active Scanning Responses . | . . . . . . . . . . . . . . . . . . . . . . . . . . . . . . . . . . . . . . . Cargo Convoy Interrupts 2 | . . . . . . . . . . . . . . . . . 1 . 1 . . . . . . . . . . . . . . . . . . . Stealth | -11 -10 -10 -10 -9 -8 -8 -7 -7 -7 -7 -6 -6 -6 -6 -6 -5 -5 -5 -5 -5 -5 -5 -4 -4 -4 -4 -4 -4 -4 -4 -3 -3 -2 -2 -2 -1 -1 -1 --------- Run | Jun Mat Min Exi Min Mat Sto Fac Low Low Zio Pro Fac Low Low Dat Pro Fac Was Fac Upp Upp Zhi Pro Fac Was Fac Ext Cet Arc Hub Res Tes Res Qua Sec Acc Com Ac0 Distress Signals 36 | . 1 . . . 5 2 5 . . . . 2 . . . . 1 . 7 . . . . 1 . 2 . 2 . 1 1 2 . . . . 4 . Communications Jammed 88 | . . . . . . . . . . . . . . . . . . . . . . . . 27 . 6 1 . . 26 . 2 5 2 19 . . . Distress Signals 88 | . . . . . . . . . . . . . . . . . . . . . . . . 27 . 6 1 . . 26 . 2 5 2 19 . . . Times Spotted 628 | . 29 4 . 13 50 26 31 5 3 . 13 35 2 3 . . 33 8 16 . 6 . . 23 . 15 14 11 4 59 20 14 22 3 36 5 94 31 Peak Tracking Total 65 | . 6 3 . 14 4 5 5 4 3 . 4 6 1 4 . . 7 6 5 . 4 . . 4 . 6 4 5 1 24 4 8 8 2 25 12 65 17 Tactical Retreats 57 | . 2 . . . 2 1 1 . . . 1 8 . . . . 7 1 2 . . . . 6 . . . . . 3 4 2 4 1 3 . 5 4 Traps | -11 -10 -10 -10 -9 -8 -8 -7 -7 -7 -7 -6 -6 -6 -6 -6 -5 -5 -5 -5 -5 -5 -5 -4 -4 -4 -4 -4 -4 -4 -4 -3 -3 -2 -2 -2 -1 -1 -1 ------- Run | Jun Mat Min Exi Min Mat Sto Fac Low Low Zio Pro Fac Low Low Dat Pro Fac Was Fac Upp Upp Zhi Pro Fac Was Fac Ext Cet Arc Hub Res Tes Res Qua Sec Acc Com Ac0 Traps Triggered 16 | . 3 . . . . . . . . . . . . . . . 1 . . . . . . 1 . 1 2 . . . 1 1 . 1 2 . 3 . Indirectly . | . . . . . . . . . . . . . . . . . . . . . . . . . . . . . . . . . . . . . . . Trap Hack Attempts . | . . . . . . . . . . . . . . . . . . . . . . . . . . . . . . . . . . . . . . . Triggered . | . . . . . . . . . . . . . . . . . . . . . . . . . . . . . . . . . . . . . . . Disarmed 17 | . . . . . . . . . . . . . . . . . . . . . . . . . . 5 . . . 6 6 . . . . . . . Reprogrammed 95 | . . . . . . . . . . . . . . . . . 29 . 13 . . . . 18 . . . . . . . 1 24 6 4 . . . Reused 67 | . . . . . . . . 4 . . 4 3 2 4 . . 12 . 7 . 2 . . 11 . 5 . . . . . . 12 1 . . . . Traps Extracted 7 | . . . . . . . . . . . 1 . 2 . . . . . . 4 . . . . . . . . . . . . . . . . . . Installed 44 | . . . . . . . . 8 . . 9 4 3 5 . . 3 . 3 . 2 . . . . 7 . . . . . . . . . . . . Triggered 76 | . . 1 . . . . . 4 . . 4 4 2 5 . . 14 . 8 . 3 . 2 11 . 5 . . . . . . 12 1 . . . . Most Traps Carried 10 | . . . . 3 3 3 3 10 6 6 10 6 2 8 6 6 6 3 3 2 8 7 7 7 7 7 . . . . . . . . . . . . Machines | -11 -10 -10 -10 -9 -8 -8 -7 -7 -7 -7 -6 -6 -6 -6 -6 -5 -5 -5 -5 -5 -5 -5 -4 -4 -4 -4 -4 -4 -4 -4 -3 -3 -2 -2 -2 -1 -1 -1 ---------- Run | Jun Mat Min Exi Min Mat Sto Fac Low Low Zio Pro Fac Low Low Dat Pro Fac Was Fac Upp Upp Zhi Pro Fac Was Fac Ext Cet Arc Hub Res Tes Res Qua Sec Acc Com Ac0 Machines Disabled 61 | . . . . . 1 5 6 . . . . 5 . . . . 3 . 2 . 1 . . . . 13 1 . 1 1 1 4 . 4 7 1 1 4 Max in Single Turn 2 | . . . . . 1 1 2 . . . . 2 . . . . 1 . . . 1 . . . . 1 . . . . 1 1 . 1 2 1 1 1 Garrison Access 26 | . . . . . 1 1 1 . . . . 3 . . . . 3 . 3 . . . . 3 . 4 . . . 2 2 1 2 . . . . . Network Hub 2 | . . . . . . . . . . . . . . . . . . . . . . . . . . . . . . 2 . . . . . . . . Machines Repaired . | . . . . . . . . . . . . . . . . . . . . . . . . . . . . . . . . . . . . . . . Machines Sabotaged . | . . . . . . . . . . . . . . . . . . . . . . . . . . . . . . . . . . . . . . . Overloaded Fab Kills . | . . . . . . . . . . . . . . . . . . . . . . . . . . . . . . . . . . . . . . . Hacking | -11 -10 -10 -10 -9 -8 -8 -7 -7 -7 -7 -6 -6 -6 -6 -6 -5 -5 -5 -5 -5 -5 -5 -4 -4 -4 -4 -4 -4 -4 -4 -3 -3 -2 -2 -2 -1 -1 -1 --------- Run | Jun Mat Min Exi Min Mat Sto Fac Low Low Zio Pro Fac Low Low Dat Pro Fac Was Fac Upp Upp Zhi Pro Fac Was Fac Ext Cet Arc Hub Res Tes Res Qua Sec Acc Com Ac0 Machines Accessed 294 | . 10 1 1 1 14 10 15 . 1 . . 34 1 1 4 . 28 . 30 1 1 4 . 38 . 21 4 1 . 7 16 16 17 4 7 1 3 2 Terminals 162 | . 8 . . . 10 6 10 . . . . 19 . . . . 14 . 15 . . . . 17 . 12 4 1 . 5 8 9 9 4 7 1 3 . Fabricators 30 | . . . . . . . 3 . . . . 4 . . . . 2 . 6 . . . . 6 . 2 . . . . 2 2 3 . . . . . Repair Stations 17 | . . . . . 1 1 1 . . . . 2 . . . . 1 . 1 . . . . 4 . . . . . . 2 2 2 . . . . . Recycling Units 26 | . 2 . . . 1 2 . . . . . 4 . . . . 4 . 5 . . . . 4 . 3 . . . . 1 . . . . . . . Scanalyzers 16 | . . . . . 1 . . . . . . 2 . . . . 4 . . . . . . 3 . 2 . . . . 1 2 1 . . . . . Garrison Access 25 | . . . . . 1 1 1 . . . . 3 . . . . 3 . 3 . . . . 4 . 2 . . . 2 2 1 2 . . . . . Total Hacks 1264 | . 28 1 4 1 38 26 39 . 1 . . 127 1 1 29 . 128 . 109 1 1 17 . 161 . 96 26 1 . 34 123 94 90 20 23 3 18 23 Successful 878 | . 13 1 4 1 16 17 26 . 1 . . 77 1 1 29 . 88 . 87 1 1 17 . 118 . 73 15 1 . 19 84 69 62 12 16 1 4 23 Failed 385 | . 14 . . . 22 9 13 . . . . 50 . . . . 40 . 22 . . . . 43 . 23 11 . . 15 39 25 28 8 7 2 14 . Catastrophic 37 | . 3 . . . 1 1 . . . . . 9 . . . . 1 . 2 . . . . 6 . 1 2 . . 3 4 . 1 1 1 . 1 . Database Lockouts 1 | . 1 . . . . . . . . . . . . . . . . . . . . . . . . . . . . . . . . . . . . . Manual 567 | . 25 . . . 19 8 18 . . . . 70 . . . . 59 . 61 . . . . 86 . 50 13 1 . 14 56 23 45 8 7 . 4 . Terminals 761 | . 26 . . . 31 20 25 . . . . 78 . . . . 70 . 60 . . . . 78 . 62 26 1 . 29 71 63 57 20 23 3 18 . Fabricators 124 | . . . . . . . 9 . . . . 15 . . . . 12 . 20 . . . . 23 . 9 . . . . 14 4 18 . . . . . Repair Stations 83 | . . . . . 2 2 3 . . . . 4 . . . . 9 . 2 . . . . 22 . . . . . . 24 10 5 . . . . . Recycling Units 97 | . 2 . . . 1 2 . . . . . 13 . . . . 17 . 21 . . . . 20 . 15 . . . . 6 . . . . . . . Scanalyzers 71 | . . . . . 2 . . . . . . 12 . . . . 14 . . . . . . 8 . 8 . . . . 4 16 7 . . . . . Garrison Access 48 | . . . . . 2 2 2 . . . . 5 . . . . 6 . 6 . . . . 10 . 2 . . . 5 4 1 3 . . . . . Terminal Hacks 392 | . 6 1 4 1 7 9 9 . 1 . . 23 1 1 29 . 30 . 32 1 1 17 . 32 . 31 10 1 . 12 31 30 27 7 12 1 2 23 Record 37 | . . . 4 . . . . . . . . . . . 11 . . . . . 1 5 . . . . . . . . . . . . . . . 16 Part Schematic 33 | . . . . . 1 . 1 . . . . 4 . . 11 . 3 . 1 . . 4 . 2 . 1 . . . . 2 2 1 . . . . . Robot Schematic 10 | . . . . . . . 1 . . . . 2 . . 4 . . . . . . . . 1 . 1 1 . . . . . . . . . . . Robot Analysis 16 | . 2 . . . 1 . . . . . . . . . . . 1 . 1 . . 4 . 5 . . . . . . . 1 1 . . . . . Prototype ID Bank 30 | . 1 . . . 1 1 1 . . . . 3 . . 3 . 2 . 2 . . 4 . 3 . 1 . . . . 4 4 . . . . . . Open Door 14 | . . 1 . 1 . 1 . . 1 . . . 1 1 . . . . . 1 . . . . . . . 1 . . . . 1 . 4 . 1 . Level Access Points 9 | . . . . . . . 1 . . . . 1 . . . . 1 . 1 . . . . 1 . 1 . . . . 1 1 . . 1 . . . Branch Access Points 8 | . . . . . . . 1 . . . . 1 . . . . 1 . 1 . . . . 1 . 1 . . . . 1 . 1 . . . . . Emergency Access Points 2 | . . . . . . . . . . . . . . . . . . . . . . . . . . . . . . . . 2 . . . . . . Machine Index 9 | . . . . . . . . . . . . . . . . . . . 1 . . . . 1 . 1 . . . 1 1 1 1 1 1 . . . Terminal Index 10 | . 1 . . . . . 1 . . . . 1 . . . . 1 . . . . . . . . . 1 . . 1 1 1 1 . . 1 . . Fabricator Index 2 | . . . . . . . . . . . . 1 . . . . 1 . . . . . . . . . . . . . . . . . . . . . Repair Station Index 2 | . . . . . . . . . . . . . . . . . . . . . . . . . . . . . . . 1 1 . . . . . . Scanalyzer Index 3 | . . . . . . . . . . . . 1 . . . . 1 . . . . . . . . . . . . . 1 . . . . . . . Garrison Index 4 | . . . . . . . . . . . . 1 . . . . 1 . . . . . . . . . . . . . 1 1 . . . . . . Alert Level 16 | . . . . . . 1 . . . . . 1 . . . . . . 3 . . . . . . 4 . . . 1 2 1 2 1 . . . . Unreport Threat 36 | . 2 . . . 1 3 . . . . . 2 . . . . 2 . 7 . . . . . . 5 5 . . 2 2 1 2 1 1 . . . Locate Traps 26 | . . . . . . 1 1 . . . . . . . . . . . 1 . . . . . . 5 2 . . 2 5 2 4 1 1 . 1 . Disarm Traps 4 | . . . . . . . . . . . . . . . . . . . . . . . . . . 2 . . . 1 1 . . . . . . . Reprogram Traps 25 | . . . . . . . . . . . . . . . . . 8 . 4 . . . . 4 . . . . . . . 1 6 1 1 . . . Security Status 1 | . . . . . . . . . . . . . . . . . . . . . . . . . . . . . . . . 1 . . . . . . Investigation Status 1 | . . . . . . . . . . . . 1 . . . . . . . . . . . . . . . . . . . . . . . . . . Reinforcement Status 3 | . . . . . . . . . . . . . . . . . . . 1 . . . . . . 1 . . . . 1 . . . . . . . Recall Investigation 10 | . . . . . . . 1 . . . . 1 . . . . 3 . . . . . . 4 . . . . . . . . 1 . . . . . Recall Extermination 15 | . . . . . . . . . . . . . . . . . 3 . . . . . . 3 . 1 . . . 1 2 2 2 1 . . . . Recall Reinforcements 4 | . . . . . . . . . . . . . . . . . . . 1 . . . . . . 1 . . . 1 . 1 . . . . . . Recall Assault 1 | . . . . . . . . . . . . . . . . . . . . . . . . . . 1 . . . . . . . . . . . . Hauler Manifests 10 | . . . . . 2 1 . . . . . 1 . . . . . . 2 . . . . 1 . 2 . . . . 1 . . . . . . . Registered Components 3 | . . . . . . . . . . . . . . . . . . . . . . . . . . . . . . . 1 1 1 . . . . . Registered Prototypes 1 | . . . . . . . . . . . . . . . . . . . . . . . . . . . . . . . 1 . . . . . . . Zone Layout 38 | . . . . . 1 1 1 . . . . 2 . . . . 2 . 6 . . . . 6 . 3 1 . . 2 2 4 3 1 3 . . . Protovariant Controls 2 | . . . . . . . . . . . . . . . . . . . . . . . . . . . . . . . . 2 . . . . . . Gate Test 138-A 2 | . . . . . . . . . . . . . . . . . . . . . . . . . . . . . . . . . . . . . . 2 Gate Test 138-B 2 | . . . . . . . . . . . . . . . . . . . . . . . . . . . . . . . . . . . . . . 2 Gate Test 138-C 2 | . . . . . . . . . . . . . . . . . . . . . . . . . . . . . . . . . . . . . . 2 Gate Test 138-END 1 | . . . . . . . . . . . . . . . . . . . . . . . . . . . . . . . . . . . . . . 1 Fabricator Hacks 40 | . . . . . . . 4 . . . . 5 . . . . 6 . 5 . . . . 7 . 3 . . . . 4 1 5 . . . . . Network Status 5 | . . . . . . . 1 . . . . . . . . . 1 . 1 . . . . . . . . . . . 1 . 1 . . . . . Load Schematic 16 | . . . . . . . 1 . . . . 3 . . . . 2 . 1 . . . . 3 . 2 . . . . 2 . 2 . . . . . Build 19 | . . . . . . . 2 . . . . 2 . . . . 3 . 3 . . . . 4 . 1 . . . . 1 1 2 . . . . . Repair Station Hacks 68 | . . . . . 2 2 2 . . . . 4 . . . . 8 . 2 . . . . 19 . . . . . . 19 6 4 . . . . . Scan Component 33 | . . . . . 1 1 1 . . . . 2 . . . . 4 . 1 . . . . 9 . . . . . . 9 3 2 . . . . . Repair 33 | . . . . . 1 1 1 . . . . 2 . . . . 4 . 1 . . . . 9 . . . . . . 9 3 2 . . . . . Refit 2 | . . . . . . . . . . . . . . . . . . . . . . . . 1 . . . . . . 1 . . . . . . . Recycling Unit Hacks 20 | . . . . . . . . . . . . 3 . . . . 2 . 5 . . . . 5 . 4 . . . . 1 . . . . . . . Process 2 | . . . . . . . . . . . . . . . . . . . . . . . . 1 . 1 . . . . . . . . . . . . Report Inventory 7 | . . . . . . . . . . . . 1 . . . . . . 2 . . . . 2 . 2 . . . . . . . . . . . . Retrieve Matter 1 | . . . . . . . . . . . . . . . . . . . . . . . . 1 . . . . . . . . . . . . . . Retrieve Components 10 | . . . . . . . . . . . . 2 . . . . 2 . 3 . . . . 1 . 1 . . . . 1 . . . . . . . Scanalyzer 63 | . . . . . 1 . . . . . . 11 . . . . 11 . . . . . . 8 . 8 . . . . 4 14 6 . . . . . Insert Component 29 | . . . . . 1 . . . . . . 4 . . . . 5 . . . . . . 4 . 4 . . . . 3 5 3 . . . . . Analyze 34 | . . . . . . . . . . . . 7 . . . . 6 . . . . . . 4 . 4 . . . . 1 9 3 . . . . . Garrison Access Hacks 21 | . . . . . 1 1 1 . . . . 2 . . . . 3 . 2 . . . . 3 . 2 . . . 1 2 1 2 . . . . . Seal Access 21 | . . . . . 1 1 1 . . . . 2 . . . . 3 . 2 . . . . 3 . 2 . . . 1 2 1 2 . . . . . Unauthorized Hacks 274 | . 7 . . . 5 5 10 . . . . 29 . . . . 28 . 41 . . . . 44 . 25 5 . . 6 23 17 18 5 4 . 2 . Terminals 149 | . 5 . . . 4 3 7 . . . . 17 . . . . 12 . 10 . . . . 17 . 13 5 . . 6 13 15 11 5 4 . 2 . Track 57 | . . . . . . . 2 . . . . 9 . . . . 4 . 5 . . . . 11 . 4 1 . . 3 5 5 5 2 1 . . . Assimilate 37 | . 2 . . . . . 2 . . . . 4 . . . . 5 . 1 . . . . 2 . 5 2 . . . 4 5 3 1 1 . . . Botnet 39 | . 2 . . . 3 2 2 . . . . 3 . . . . 2 . 3 . . . . 3 . 3 1 . . 2 3 3 2 1 2 . 2 . Disrupt 1 | . . . . . . . . . . . . . . . . . . . . . . . . . . . . . . . . 1 . . . . . . Operators 15 | . 1 . . . 1 1 1 . . . . 1 . . . . 1 . 1 . . . . 1 . 1 1 . . 1 1 1 1 1 . . . . Fabricators 58 | . . . . . . . 3 . . . . 7 . . . . 4 . 14 . . . . 13 . 3 . . . . 6 1 7 . . . . . Report 4 | . . . . . . . . . . . . 1 . . . . . . 1 . . . . 1 . . . . . . 1 . . . . . . . Prioritize 15 | . . . . . . . . . . . . 1 . . . . 1 . 6 . . . . 5 . . . . . . 1 . 1 . . . . . Liberate 27 | . . . . . . . 2 . . . . 3 . . . . 2 . 6 . . . . 6 . 2 . . . . 2 1 3 . . . . . Fabnet 2 | . . . . . . . . . . . . . . . . . . . . . . . . . . . . . . . . . 2 . . . . . Haulers 9 | . . . . . . . 1 . . . . 1 . . . . 1 . 1 . . . . 1 . 1 . . . . 2 . 1 . . . . . Recompile 1 | . . . . . . . . . . . . 1 . . . . . . . . . . . . . . . . . . . . . . . . . . Repair Stations . | . . . . . . . . . . . . . . . . . . . . . . . . . . . . . . . . . . . . . . . Recycling Units 61 | . 2 . . . 1 2 . . . . . 5 . . . . 12 . 15 . . . . 11 . 9 . . . . 4 . . . . . . . Monitor 14 | . . . . . . . . . . . . . . . . . 4 . 5 . . . . 2 . 2 . . . . 1 . . . . . . . Reject 20 | . . . . . . . . . . . . 3 . . . . 4 . 5 . . . . 4 . 3 . . . . 1 . . . . . . . Recyclers 3 | . . . . . . . . . . . . . . . . . . . . . . . . 1 . 1 . . . . 1 . . . . . . . Mask 19 | . . . . . . . . . . . . 2 . . . . 4 . 5 . . . . 4 . 3 . . . . 1 . . . . . . . Tunnel 5 | . 2 . . . 1 2 . . . . . . . . . . . . . . . . . . . . . . . . . . . . . . . . Scanalyzers 1 | . . . . . . . . . . . . . . . . . . . . . . . . . . . . . . . . 1 . . . . . . Researchers 1 | . . . . . . . . . . . . . . . . . . . . . . . . . . . . . . . . 1 . . . . . . Garrison Access 5 | . . . . . . . . . . . . . . . . . . . 2 . . . . 3 . . . . . . . . . . . . . . Decoy 2 | . . . . . . . . . . . . . . . . . . . 1 . . . . 1 . . . . . . . . . . . . . . Reprogram 2 | . . . . . . . . . . . . . . . . . . . 1 . . . . 1 . . . . . . . . . . . . . . Watchers 1 | . . . . . . . . . . . . . . . . . . . . . . . . 1 . . . . . . . . . . . . . . Data Cores Recovered 3 | . 1 . . . . 1 . . . . . . . . . . . . . . . . . . . 1 . . . . . . . . . . . . Used . | . . . . . . . . . . . . . . . . . . . . . . . . . . . . . . . . . . . . . . . Hacking Detections 208 | . 8 . . . 13 6 14 . . . . 28 . . . . 22 . 22 . . . . 29 . 17 4 . . 6 9 10 10 2 4 1 3 . Full Trace Events 16 | . . . . . . . 1 . . . . 1 . . . . 3 . 1 . . . . 4 . 2 . . . 1 1 . 2 . . . . . Feedback Events . | . . . . . . . . . . . . . . . . . . . . . . . . . . . . . . . . . . . . . . . Feedback Blocked 1 | . . . . . . . . . . . . . . . . . . . . . . . . . . . . . . 1 . . . . . . . . Robot Schematics Acquired 13 | . . . . . . . 1 . . 3 . 2 . . 4 . . . . . . . . 1 . 1 1 . . . . . . . . . . . Robots Built 10 | . . . . . . . . . . . . . . . . . . . 2 . . . . 3 . 2 . . . . . . 3 . . . . . Authchips . | . . . . . . . . . . . . . . . . . . . . . . . . . . . . . . . . . . . . . . . Time 444 | . . . . . . . . . . . . . . . . . . . 76 . . . . 62 . 84 . . . . . . 222 . . . . . Total Robot Build Rating 70 | . . . . . . . . . . . . . . . . . . . 10 . . . . 21 . 12 . . . . . . 27 . . . . . Part Schematics Acquired 67 | . . . . . 1 . 1 . . 14 . 7 . . 11 . 7 . 1 . . 4 . 6 . 5 . . . . 3 5 2 . . . . . Parts Built 20 | . . . . . . . 4 . . . . 3 . . . . 4 . 2 . . . . 3 . . . . . . 1 1 2 . . . . . Authchips 2 | . . . . . . . . . . . . 2 . . . . . . . . . . . . . . . . . . . . . . . . . . Time 879 | . . . . . . . 93 . . . . 123 . . . . 187 . 145 . . . . 171 . . . . . . 55 74 31 . . . . . Total Part Build Rating 133 | . . . . . . . 26 . . . . 18 . . . . 25 . 14 . . . . 22 . . . . . . 9 9 10 . . . . . Parts Repaired 33 | . . . . . 1 1 1 . . . . 2 . . . . 4 . 1 . . . . 9 . . . . . . 9 3 2 . . . . . Time 1772 | . . . . . 26 108 25 . . . . 192 . . . . 212 . 80 . . . . 530 . . . . . . 438 85 76 . . . . . Parts Recycled . | . . . . . . . . . . . . . . . . . . . . . . . . . . . . . . . . . . . . . . . Recycled Matter 53 | . . . . . . . . . . . . . . . . . . . . . . . . 16 . 37 . . . . . . . . . . . . Retrieved Matter 16 | . . . . . . . . . . . . . . . . . . . . . . . . 16 . . . . . . . . . . . . . . Retrieved Components 39 | . . . . . . . . . . . . 12 . . . . 1 . 13 . . . . 10 . 2 . . . . 1 . . . . . . . Parts Scanalyzed 21 | . . . . . 1 . . . . . . 2 . . . . 5 . . . . . . 4 . 4 . . . . 1 3 1 . . . . . Part Schematics Acquired 20 | . . . . . . . . . . . . 3 . . . . 4 . . . . . . 4 . 4 . . . . 1 3 1 . . . . . Parts Damaged 2 | . . . . . . . . . . . . . . . . . . . . . . . . 1 . . . . . . . 1 . . . . . . Bothacking | -11 -10 -10 -10 -9 -8 -8 -7 -7 -7 -7 -6 -6 -6 -6 -6 -5 -5 -5 -5 -5 -5 -5 -4 -4 -4 -4 -4 -4 -4 -4 -3 -3 -2 -2 -2 -1 -1 -1 ------------ Run | Jun Mat Min Exi Min Mat Sto Fac Low Low Zio Pro Fac Low Low Dat Pro Fac Was Fac Upp Upp Zhi Pro Fac Was Fac Ext Cet Arc Hub Res Tes Res Qua Sec Acc Com Ac0 Used RIF Installer . | . . . . . . . . . . . . . . . . . . . . . . . . . . . . . . . . . . . . . . . Robots Hacked 14 | . . 2 4 . . . . . . 1 . . . . . . . . . . . . . . . . . . . . . . . . . . 7 . Non-combat 3 | . . . 3 . . . . . . . . . . . . . . . . . . . . . . . . . . . . . . . . . . . Combat 11 | . . 2 1 . . . . . . 1 . . . . . . . . . . . . . . . . . . . . . . . . . . 7 . Robot Hacks Applied 7 | . . 2 4 . . . . . . 1 . . . . . . . . . . . . . . . . . . . . . . . . . . . . parse_system 7 | . . 2 4 . . . . . . 1 . . . . . . . . . . . . . . . . . . . . . . . . . . . . Relay Couplers Released 5 | . . . . . . . . . . . . . . . . . . . 1 . . . . . . 2 . . . 2 . . . . . . . . Machine Destruction 5 | . . . . . . . . . . . . . . . . . . . 1 . . . . . . 2 . . . 2 . . . . . . . . Fabnet Peak Effective % 6 | . . . . . . . . . . . . . . . . . . . . . . . . . . . . . . . . . . . . 6 6 6 Autooverrided 7 | . . . . . . . . . . . . . . . . . . . . . . . . . . . . . . . . . . . . . 7 . Robots Rewired 11 | . . . . . . . . . . . . . . . . . . . . . 1 . . 1 . . 9 . . . . . . . . . . . Allies Hacked 7 | . . . . . . . . . . . . 4 . . . . . . . . . . . . . . 1 . . . . . . . . . 2 . Hacks Repelled . | . . . . . . . . . . . . . . . . . . . . . . . . . . . . . . . . . . . . . . . Allies | -11 -10 -10 -10 -9 -8 -8 -7 -7 -7 -7 -6 -6 -6 -6 -6 -5 -5 -5 -5 -5 -5 -5 -4 -4 -4 -4 -4 -4 -4 -4 -3 -3 -2 -2 -2 -1 -1 -1 -------- Run | Jun Mat Min Exi Min Mat Sto Fac Low Low Zio Pro Fac Low Low Dat Pro Fac Was Fac Upp Upp Zhi Pro Fac Was Fac Ext Cet Arc Hub Res Tes Res Qua Sec Acc Com Ac0 Total Allies 158 | . 1 3 . . . 12 2 . . 4 . 6 . . . . 4 18 6 . 1 . . 8 20 4 18 6 . . 3 3 5 1 1 13 19 . Largest Group 20 | . 1 4 4 4 . 12 8 1 . 4 4 3 . . . . 2 18 16 . 1 . . 3 20 20 11 9 8 5 1 1 3 1 1 6 6 . Highest-Rated Group 772 | . 10 50 50 50 . 277 210 26 . 93 93 108 . . . . 52 656 606 . 49 . . 141 772 772 562 703 703 480 45 26 174 26 10 86 169 . Highest-Rated Ally 159 | . 10 16 16 16 . 100 88 26 . 31 31 41 . . . . 26 50 50 . 49 . . 56 50 54 159 159 152 96 45 26 58 26 10 15 89 . Total Orders 149 | . 3 4 . . . . 19 16 5 . . 5 . . . . 18 . . . . . 6 15 . 10 . 5 1 3 5 10 8 4 7 3 2 . STAY 35 | . 2 2 . . . . 3 5 . . . 3 . . . . 12 . . . . . 1 1 . . . 1 1 . . 2 1 . 1 . . . ROAM 1 | . . . . . . . . . . . . . . . . . 1 . . . . . . . . . . . . . . . . . . . . . FOLLOW 20 | . 1 1 . . . . 3 4 . . . 2 . . . . 5 . . . . . 1 . . . . 1 . . . 1 . . 1 . . . EXPLORE 22 | . . . . . . . 12 4 4 . . . . . . . . . . . . . . . . . . . . . . . . . . 2 . . RETURN 71 | . . 1 . . . . 1 3 1 . . . . . . . . . . . . . 4 14 . 10 . 3 . 3 5 7 7 4 5 1 2 . Ally Attacks 773 | . . 5 . 10 . 109 70 . . . 17 17 . . . . . 66 102 . . . . 38 . 93 64 48 26 69 . . 12 . . . 27 . Total Damage 25775 | . . 74 . 90 . 2130 863 . . . 250 634 . . . . . 2347 3679 . . . . 1316 . 5801 2571 1312 971 2629 . . 415 . . . 693 . Kills 159 | . . 1 . 2 . 29 10 . . . 2 6 . . . . . 7 27 . . . . 5 . 28 12 10 3 12 . . 1 . . . 4 . Allies Corrupted 8 | . . . . . . . . . . . . 1 . . . . . . 3 . . . . 1 . 1 . . . 1 . . . . . . 1 . Allies Melted . | . . . . . . . . . . . . . . . . . . . . . . . . . . . . . . . . . . . . . . . Intel | -11 -10 -10 -10 -9 -8 -8 -7 -7 -7 -7 -6 -6 -6 -6 -6 -5 -5 -5 -5 -5 -5 -5 -4 -4 -4 -4 -4 -4 -4 -4 -3 -3 -2 -2 -2 -1 -1 -1 ------- Run | Jun Mat Min Exi Min Mat Sto Fac Low Low Zio Pro Fac Low Low Dat Pro Fac Was Fac Upp Upp Zhi Pro Fac Was Fac Ext Cet Arc Hub Res Tes Res Qua Sec Acc Com Ac0 Robot Analysis Total 16 | . 2 . . . 1 . . . . . . . . . . . 1 . 1 . . 4 . 5 . . . . . . . 1 1 . . . . . Derelict Logs Recovered 20 | . . 2 . 2 . . . 2 1 . 1 . 1 2 . 3 . . . 2 1 . 3 . . . . . . . . . . . . . . . Drone Launches 210 | . . 1 . . . 12 8 4 4 . . . . . . . . . . . . . 12 42 . 27 . 9 . 9 15 21 21 12 8 3 2 . Drone Recoveries 194 | . . 1 . . . . 8 4 2 . . . . . . . . . . . . . 12 42 . 27 . 8 . 9 15 21 21 12 8 2 2 . Exploration | -11 -10 -10 -10 -9 -8 -8 -7 -7 -7 -7 -6 -6 -6 -6 -6 -5 -5 -5 -5 -5 -5 -5 -4 -4 -4 -4 -4 -4 -4 -4 -3 -3 -2 -2 -2 -1 -1 -1 ------------- Run | Jun Mat Min Exi Min Mat Sto Fac Low Low Zio Pro Fac Low Low Dat Pro Fac Was Fac Upp Upp Zhi Pro Fac Was Fac Ext Cet Arc Hub Res Tes Res Qua Sec Acc Com Ac0 Turns Passed 42391 | 47 1776 1442 361 1308 3206 1703 1614 1671 1166 1226 2669 2467 1211 735 27 589 1786 156 1352 560 643 64 622 2888 112 1975 855 258 104 364 1887 1206 1358 516 635 267 1183 382 Spaces Moved 60344 | 44 908 927 235 811 1783 928 863 1120 826 869 1838 4202 1768 1485 78 1392 4156 419 3615 1407 1802 147 1452 6607 146 4092 1105 206 126 696 3496 1888 3318 956 1396 413 1957 867 Core 6 | 4 . . . . . . . . . . . . . . . . . . . . . . . . . . 1 . . . . . . 1 . . . . Treads 5 | . 4 . . 1 . . . . . . . . . . . . . . . . . . . . . . . . . . . . . . . . . . Legs 3767 | . . . . . . . . . . . . . . . . . . . . . . . . . . . . . . . . . . . 530 413 1957 867 Wheels 11468 | 40 904 927 235 810 1783 928 863 1120 826 869 1838 325 . . . . . . . . . . . . . . . . . . . . . . . . . . Hover . | . . . . . . . . . . . . . . . . . . . . . . . . . . . . . . . . . . . . . . . Flight 45098 | . . . . . . . . . . . . 3877 1768 1485 78 1392 4156 419 3615 1407 1802 147 1452 6607 146 4092 1104 206 126 696 3496 1888 3318 955 866 . . . Fastest Speed 24 | 50 80 150 150 150 120 155 135 135 120 120 135 27 32 32 32 32 27 27 24 24 24 24 30 30 32 32 32 32 32 24 24 28 25 29 29 30 30 30 Average Speed 50 | 77 140 150 150 150 139 155 153 135 134 137 135 40 32 32 32 32 27 27 26 24 24 26 30 31 32 32 32 32 32 31 28 28 28 29 29 30 30 30 Slowest Speed 240 | 80 160 150 150 240 165 155 240 135 135 155 135 195 32 32 32 32 95 27 27 100 24 107 30 39 32 32 150 32 32 32 34 28 35 200 30 30 30 30 Overloaded Moves 23 | . . . . . . . . . . . . . . . . . . . . . . . . . . . . . . 20 . . 3 . . . . . Propulsion Burnouts . | . . . . . . . . . . . . . . . . . . . . . . . . . . . . . . . . . . . . . . . Robots Hopped 178 | . . . . . . . . . . . . 18 . . . . 12 . 13 2 . . . 54 . 15 11 . 2 12 9 7 12 5 6 . . . Cave-ins Triggered 1 | . . . . . . . . . . . . . . . . . . . . . . . . . . . . . . . . . . . . . 1 . Teleports 1 | . . . . . . . . . . . . . . . . . . . . . . . . . . . . . . . . . . . . . 1 . Exploration Rate (%) 74 | 4 95 99 64 99 88 93 37 99 95 85 97 79 97 83 68 93 57 97 76 95 96 60 96 84 87 65 95 60 79 55 52 95 57 73 66 9 47 43 Regions Visited 38 Branch Regions 25 Pre-discovered Areas 15 | . 2 . 1 . 1 3 . 1 . 1 1 . . 1 1 . . . . . . 3 . . . . . . . . . . . . . . . . Known Exits Taken 27 | . . . 1 . 1 . 1 1 1 1 1 1 1 1 1 1 . . 1 1 1 1 1 . . 1 1 1 1 1 1 1 1 1 1 . . . Unknown Exits Taken 7 | 1 1 1 . 1 . 1 . . . . . . . . . . . . . . . . . . . . . . . . . . . . . 1 1 . Scrap Searched 36 | . . 1 . 4 . . . 4 3 4 1 . 2 3 . 2 . . . 3 4 . 5 . . . . . . . . . . . . . . . Spaces Dug 687 | . 7 7 . . 13 13 11 2 13 . 11 59 19 7 . 10 55 2 45 48 13 . 13 56 . 69 2 . . 7 81 19 48 15 19 10 9 4 Terrain Destroyed 926 | . 7 16 . . 28 13 31 2 13 . 28 70 19 28 . 10 74 4 46 49 98 . 13 56 . 70 2 . . 8 100 22 51 15 20 10 9 14 Melee 461 | . 7 . . . 8 . 8 2 6 . . 58 19 7 . 10 45 2 31 22 12 . 12 39 . 48 2 . . 5 44 17 35 9 2 . 7 4 Projectile 195 | . . . . . 6 4 3 . . . 2 7 . . . . 4 2 15 27 1 . 1 17 . 22 . . . 3 14 5 16 6 18 10 2 10 AOE 270 | . . 16 . . 14 9 20 . 7 . 26 5 . 21 . . 25 . . . 85 . . . . . . . . . 42 . . . . . . . Terrain Rammed . | . . . . . . . . . . . . . . . . . . . . . . . . . . . . . . . . . . . . . . . Walls Destroyed . | . . . . . . . . . . . . . . . . . . . . . . . . . . . . . . . . . . . . . . . Machines Disabled . | . . . . . . . . . . . . . . . . . . . . . . . . . . . . . . . . . . . . . . . Actions | -11 -10 -10 -10 -9 -8 -8 -7 -7 -7 -7 -6 -6 -6 -6 -6 -5 -5 -5 -5 -5 -5 -5 -4 -4 -4 -4 -4 -4 -4 -4 -3 -3 -2 -2 -2 -1 -1 -1 --------- Run | Jun Mat Min Exi Min Mat Sto Fac Low Low Zio Pro Fac Low Low Dat Pro Fac Was Fac Upp Upp Zhi Pro Fac Was Fac Ext Cet Arc Hub Res Tes Res Qua Sec Acc Com Ac0 Total 69781 | 53 1299 970 241 877 2288 1172 1056 1268 864 903 1994 4766 2350 1728 78 1518 4680 454 3891 1545 1977 168 1613 7233 210 4601 1564 382 181 783 4239 2504 3594 1166 1567 550 2496 958 Wait 6662 | . 259 28 1 42 224 188 70 107 21 1 89 391 529 207 . 114 346 30 165 79 133 . 142 499 65 383 386 160 51 50 563 525 157 156 52 116 321 12 Move 59971 | 43 907 926 234 810 1782 927 862 1119 825 868 1837 4167 1767 1484 77 1391 4133 418 3588 1402 1801 146 1451 6508 145 4063 1082 205 121 672 3478 1874 3295 945 1384 412 1955 867 Hop 158 | . . . . . . . . . . . . 16 . . . . 11 . 13 2 . . . 45 . 13 11 . 2 11 8 6 10 5 5 . . . Pick Up 314 | 4 28 2 . 3 35 10 11 12 1 9 12 10 . 7 . . 26 . 11 . 4 2 . 19 . 8 1 1 1 1 21 11 12 9 17 1 15 10 Fast Attach 158 | 6 3 . . . 14 3 6 . 1 3 . 7 1 . . . 8 . 6 . 2 7 . 6 . . 3 1 . 5 9 8 3 6 21 5 20 4 Attach 111 | . 1 . . 1 7 1 4 . . 1 . 15 . . . . 8 . 2 . . 1 . 6 . 1 . 1 . 2 6 1 6 4 8 3 23 9 Detach 50 | . . . . . . . 2 . . . . 7 1 . . . 4 . 3 . . . . . . 1 . . . 1 3 . . 3 6 4 15 . Swap 485 | . 29 6 2 6 56 12 21 6 5 6 13 26 12 5 1 3 26 . 16 10 8 3 6 44 . 21 13 5 2 15 31 14 29 4 10 . 14 5 Drop 380 | . 16 2 . 3 47 12 13 10 4 13 13 17 1 7 . . 29 . 15 . 5 8 . 12 . 6 . 1 1 1 22 16 12 14 28 3 38 11 Fire 422 | . 44 4 . 12 45 10 57 . 1 . 21 33 . 5 . . 12 4 16 27 4 . 1 18 . 27 . . . 4 20 12 17 7 12 5 2 2 Melee 954 | . 12 2 4 . 78 3 10 6 6 2 . 73 36 8 . 10 74 2 53 25 15 1 13 74 . 71 14 8 3 21 78 33 53 13 22 1 92 38 Ram . | . . . . . . . . . . . . . . . . . . . . . . . . . . . . . . . . . . . . . . . Kick 2 | . . . . . . . . . . . . . . . . . . . . . . . . . . . . . . . . . . . 2 . . . Crush . | . . . . . . . . . . . . . . . . . . . . . . . . . . . . . . . . . . . . . . . Escape Stasis 16 | . . . . . . . . . . . . . . . . . . . . . . . . . . . 11 . . . . 4 . . . . 1 . Rewire 48 | . . . . . . . . . . . . . . . . . . . . . 3 . . 2 . . 43 . . . . . . . . . . . Trap 44 | . . . . . . . . 8 . . 9 4 3 5 . . 3 . 3 . 2 . . . . 7 . . . . . . . . . . . . Miscellaneous 6 | . . . . . . 6 . . . . . . . . . . . . . . . . . . . . . . . . . . . . . . . . Route ------- -11/Junkyard -10/Materials (discovered 5 exits: [*Mat x3] / *Min x2) -10/Mines (discovered 3 exits: [*Mat x2] / *Exi) -10/Exiles (discovered 2 exits: *Min x2) -9/Mines (discovered 2 exits: *Mat x2) -8/Materials (discovered 4 exits: *Fac x2 / *Sto x2) -8/Storage -7/Factory (discovered 6 exits: Fac x4 / *Low x2) -7/Lower Caves -7/Lower Caves (discovered 2 exits: *Fac / *Zio) -7/Zion -6/Proximity Caves -6/Factory (discovered 6 exits: *Fac x4 / *Low x2) -6/Lower Caves -6/Lower Caves (discovered 2 exits: *Fac / *Dat) -6/Data Miner -5/Proximity Caves -5/Factory (discovered 6 exits: *Fac x4 / *Upp x2) -5/Waste -5/Factory (discovered 6 exits: *Fac x4 / *Upp x2) -5/Upper Caves -5/Upper Caves (discovered 2 exits: *Fac / *Zhi) -5/Zhirov -4/Proximity Caves -4/Factory (discovered 9 exits: *Res x4 / *Upp x2 / *Ext x2 / Arm) -4/Waste -4/Factory (discovered 9 exits: *Res x4 / *Upp x2 / *Ext x2 / Arm) -4/Extension (discovered 2 exits: *Res / *Cet) -4/Cetus -4/Archives (discovered 2 exits: *Hub x2) -4/Hub_04(d) (discovered 2 exits: *Res x2) -3/Research (discovered 5 exits: Res x3 / *Tes x2) -3/Testing -2/Research (discovered 3 exits: Acc / *Qua x2) -2/Quarantine (discovered 2 exits: *Acc / *Sec) -2/Section 7 -1/Access -1/Command (discovered 2 exits: [*Sur] / *Ac0) -1/Access_0 Subspace History --------- Turn | Location | Event 22 | -11/Junkyard | Discovered new exit (range 15) 48 | -11/Junkyard | Entered Materials 235 | -10/Materials | Discovered new exit (range 15) 306 | -10/Materials | Build established: Mutant 357 | -10/Materials | Discovered new exit (range 3) 914 | -10/Materials | Discovered new exit (range 14) 1258 | -10/Materials | Discovered new exit (range 15) 1401 | -10/Materials | Central database locked down 1557 | -10/Materials | Discovered new exit (range 10) 1824 | -10/Materials | Entered Mines 1824 | -10/Mines | Accompanied by 1 ally 1898 | -10/Mines | Discovered new exit (range 5) 2050 | -10/Mines | Found a damaged Exp. Sensor Array with a note attached 2053 | -10/Mines | Found Prototype Device 2158 | -10/Mines | Discovered new exit (range 15) 2228 | -10/Mines | Assisted by bots powering up and referring to "LRC-V3" 2425 | -10/Mines | Learned location of 1 exit from Materials 2528 | -10/Mines | Build established: Commander-Mutant 2723 | -10/Mines | Deemed a non-threat by the Exiles lab entrance 2725 | -10/Mines | Discovered new exit (range 5) 3071 | -10/Mines | Found the Drone Emporium 3078 | -10/Mines | Found Prototype Device 3079 | -10/Mines | Identified Splice Drone Bay 3266 | -10/Mines | Entered Exiles 3266 | -10/Exiles | Accompanied by 4 allies 3267 | -10/Exiles | Identified exit to Mines 3304 | -10/Exiles | Met 8R-AWN 3332 | -10/Exiles | Met EX-HEX 3412 | -10/Exiles | Met EX-DEC 3455 | -10/Exiles | Learned location of Zion (-7) 3481 | -10/Exiles | Met EX-BIN 3627 | -10/Exiles | Entered Mines 3627 | -9/Mines | Accompanied by 4 allies 3670 | -9/Mines | Assembled infested the area 3824 | -9/Mines | Met a Derelict who couldn't figure out how to use a Trap Extractor 3870 | -9/Mines | Discovered new exit (range 6) 3878 | -9/Mines | Discovered new exit (range 12) 3969 | -9/Mines | Build established: Mutant 4180 | -9/Mines | Learned Materials trap positions 4296 | -9/Mines | Found a hidden stash of uninstalled traps 4450 | -9/Mines | Learned location of 1 exit from Materials 4935 | -9/Mines | Entered Materials 4935 | -8/Materials | Evolved 4 slots: Propulsion x1, Utility x3 4936 | -8/Materials | Identified exit to Storage 4937 | -8/Materials | Loaded intel: 13 trap records 4979 | -8/Materials | Repaired Lgt. Treads 5458 | -8/Materials | Identified Exp. Sensor Array 6402 | -8/Materials | Discovered new exit (range 16) 6682 | -8/Materials | Build established: Scavenger-Mutant 6725 | -8/Materials | Discovered new exit (range 9) 7208 | -8/Materials | Build established: Mutant 8141 | -8/Materials | Entered Storage 8207 | -8/Storage | Met 01-MTF 8270 | -8/Storage | Learned location of Armory (-4) 8717 | -8/Storage | Discovered new exit (range 16) 8957 | -8/Storage | Assisted by bots powering up and referring to "LRC-V3" 9247 | -8/Storage | Build established: Commander-Mutant 9580 | -8/Storage | Repaired Exp. Sensor Array 9844 | -8/Storage | Entered Factory 9844 | -7/Factory | Accompanied by 17 allies (01-MTF) 9844 | -7/Factory | Evolved 2 slots: Propulsion x2 9849 | -7/Factory | 01-MTF left 10001 | -7/Factory | Identified exit to Lower Caves 10193 | -7/Factory | Garrison activated, responded to threat 10217 | -7/Factory | Build established: Scavenger-Mutant 10350 | -7/Factory | Fabricated Imp. Antigrav System (x2) 10904 | -7/Factory | Build established: Hacker-Mutant 10976 | -7/Factory | Identified exit to Factory 11076 | -7/Factory | Repaired Drone Bay? 11319 | -7/Factory | Fabricated Nuclear Pulse Array? 11458 | -7/Factory | Entered Lower Caves 11458 | -7/Lower Caves | Accompanied by 1 ally 11486 | -7/Lower Caves | Encountered a Warlord checkpoint 11673 | -7/Lower Caves | Build established: Mutant 12206 | -7/Lower Caves | Build established: Trapper-Mutant 12378 | -7/Lower Caves | Learned 8 Factory zone layouts 12493 | -7/Lower Caves | Discovered new exit (range 43) 12793 | -7/Lower Caves | Attracted the attention of an 0b10 checkpoint 12884 | -7/Lower Caves | Identified exit to Lower Caves 13094 | -7/Lower Caves | Build established: Mutant 13129 | -7/Lower Caves | Entered another Lower Caves area 13138 | -7/Lower Caves | Discovered exit to Factory (range 10) 13945 | -7/Lower Caves | Learned Factory trap positions 14171 | -7/Lower Caves | Discovered new exit (range 13) 14186 | -7/Lower Caves | Identified exit to Zion 14295 | -7/Lower Caves | Entered Zion 14369 | -7/Zion | Discovered new exit (range 16) 14376 | -7/Zion | Found CR-A16's Pointy Stick 14675 | -7/Zion | Gained Derelict followers 14756 | -7/Zion | Found Prototype Launcher 14756 | -7/Zion | Identified Gui. Missile Launcher 15331 | -7/Zion | Visited the Megawrench Repair Shop 15331 | -7/Zion | Megawrench repaired 9 parts 15519 | -7/Zion | Identified exit to Proximity Caves 15521 | -7/Zion | Entered Proximity Caves 15521 | -6/Proximity Caves | Accompanied by 4 allies 16683 | -6/Proximity Caves | Build established: Trapper-Mutant 17887 | -6/Proximity Caves | Discovered exit to Factory (range 11) 18190 | -6/Proximity Caves | Entered Factory 18190 | -6/Factory | Evolved 2 slots: Utility x2 18192 | -6/Factory | Loaded intel: 78 trap records 18376 | -6/Factory | Discovered new exit (range 8) 18390 | -6/Factory | Identified exit to Factory 18497 | -6/Factory | Build established: Hacker-Mutant 18684 | -6/Factory | Garrison activated, responded to threat 18758 | -6/Factory | Lost 5 parts (1p3n1u) 18831 | -6/Factory | Fabricated Nuclear Pulse Array (x2) 18858 | -6/Factory | Identified exit to Lower Caves 19139 | -6/Factory | Build established: Hacker-Sprinter 19312 | -6/Factory | Discovered exit to Factory (range 16) 19322 | -6/Factory | Discovered exit to Factory (range 15) 19553 | -6/Factory | Repaired Broken Exp. Sensor Array 20208 | -6/Factory | Repaired Nuclear Pulse Array 20603 | -6/Factory | Fabricated Adv. Hacking Suite (x1) 20657 | -6/Factory | Entered Lower Caves 21046 | -6/Lower Caves | Spotted B-75 Beast 21084 | -6/Lower Caves | Revealed the true nature of CR-A16's Pointy Stick 21088 | -6/Lower Caves | Destroyed B-75 Beast 21191 | -6/Lower Caves | Learned Factory emergency access door positions 21495 | -6/Lower Caves | Build established: Derelict-Sprinter 21495 | -6/Lower Caves | Discovered new exit (range 11) 21508 | -6/Lower Caves | Identified exit to Lower Caves 21868 | -6/Lower Caves | Entered another Lower Caves area 21967 | -6/Lower Caves | Discovered exit to Factory (range 2) 22201 | -6/Lower Caves | Learned Factory stockpile data 22599 | -6/Lower Caves | Discovered new exit (range 8) 22603 | -6/Lower Caves | Identified exit to Data Miner 22603 | -6/Lower Caves | Entered Data Miner 22603 | -6/Data Miner | Discovered new exit (range 6) 22610 | -6/Data Miner | Met Data Miner 22615 | -6/Data Miner | Learned location of Section 7 (-2) 22615 | -6/Data Miner | Acquired the access code to Warlord's prototype stash 22620 | -6/Data Miner | Received God Mode back door access code from Data Miner 22628 | -6/Data Miner | Identified exit to Proximity Caves 22630 | -6/Data Miner | Entered Proximity Caves 22647 | -5/Proximity Caves | Learned Factory emergency access door positions 22713 | -5/Proximity Caves | Spotter reported a threat 22837 | -5/Proximity Caves | Spotter reported a threat 22860 | -5/Proximity Caves | Learned Factory trap positions 22869 | -5/Proximity Caves | Learned Factory trap positions 22972 | -5/Proximity Caves | Discovered exit to Factory (range 14) 23219 | -5/Proximity Caves | Entered Factory 23219 | -5/Factory | Evolved 2 slots: Utility x2 23220 | -5/Factory | Loaded intel: 111 trap records 23321 | -5/Factory | Repaired Nuclear Pulse Array 23360 | -5/Factory | Repaired Imp. Light Armor Plating 23441 | -5/Factory | Repaired Exp. Utility Shielding? 23519 | -5/Factory | Repaired Imp. Propulsion Shielding 23609 | -5/Factory | Identified exit to Upper Caves 23625 | -5/Factory | Build established: Hacker-Scout 23675 | -5/Factory | Discovered new exit (range 16) 23675 | -5/Factory | Identified exit to Factory 23696 | -5/Factory | Fabricated Adv. Hacking Suite? 24254 | -5/Factory | Build established: Hacker-Sprinter 24452 | -5/Factory | Incoming investigation squad redirected 24549 | -5/Factory | Fabricated Field Propulsion Array? 24696 | -5/Factory | Fabricated Lgt. Regenerative Plating? 24772 | -5/Factory | Cargo convoy interrupted 24778 | -5/Factory | Incoming investigation squad redirected 24858 | -5/Factory | Found Prototype Processor 24919 | -5/Factory | Identified Exp. Signal Interpreter 24994 | -5/Factory | Found Scatter Rocket Array 25005 | -5/Factory | Manually triggered Chute Trap 25005 | -5/Factory | Sucked down chute 25005 | -5/Factory | Entered Waste 25010 | -5/Waste | 1 allies followed down the chute 25016 | -5/Waste | Spotted C-40 Crusher 25018 | -5/Waste | Spotted C-40 Crusher 25031 | -5/Waste | Spotted C-40 Crusher 25067 | -5/Waste | Spotted C-40 Crusher 25067 | -5/Waste | Spotted C-40 Crusher 25073 | -5/Waste | Spotted C-40 Crusher 25086 | -5/Waste | Discovered new exit (range 16) 25092 | -5/Waste | Warlord forces began an assault 25112 | -5/Waste | Allies destroyed C-40 Crusher 25117 | -5/Waste | Destroyed C-40 Crusher 25125 | -5/Waste | Allies destroyed C-40 Crusher 25128 | -5/Waste | Allies destroyed C-40 Crusher 25131 | -5/Waste | Allies destroyed C-40 Crusher 25143 | -5/Waste | Identified exit to Factory 25161 | -5/Waste | Entered Factory 25161 | -5/Factory | Accompanied by 16 allies 25162 | -5/Factory | Loaded intel: 80 trap records 25190 | -5/Factory | Found Prototype Launcher 25191 | -5/Factory | Identified Tesla Bomb Launcher 25202 | -5/Factory | Garrison activated, responded to threat 25516 | -5/Factory | Fabricated Enh. Nova Cannon (x1) 25682 | -5/Factory | Fabricated Exp. Propulsion Shielding (x1) 26055 | -5/Factory | Repaired Exp. Utility Shielding? 26079 | -5/Factory | Fabricated X-67 Chaingunner (x2) 26384 | -5/Factory | Cargo convoy interrupted 26410 | -5/Factory | Found Prototype Processor 26410 | -5/Factory | Identified Spectral Analyzer 26415 | -5/Factory | Found Prototype Device 26415 | -5/Factory | Identified Exp. Transmission Jammer 26448 | -5/Factory | Incoming assault squad redirected 26513 | -5/Factory | Entered Upper Caves 26514 | -5/Upper Caves | Encountered a Warlord checkpoint 26514 | -5/Upper Caves | Learned Factory trap positions 26570 | -5/Upper Caves | Learned Factory terminal intel 26754 | -5/Upper Caves | Discovered new exit (range 15) 26765 | -5/Upper Caves | Identified exit to Upper Caves 27073 | -5/Upper Caves | Entered another Upper Caves area 27251 | -5/Upper Caves | Discovered exit to Factory (range 15) 27380 | -5/Upper Caves | Discovered new exit (range 13) 27383 | -5/Upper Caves | Identified exit to Zhirov 27558 | -5/Upper Caves | Learned Factory terminal intel 27600 | -5/Upper Caves | Found Alien Artifact 27600 | -5/Upper Caves | Identified Dimensional Node Initializer 27600 | -5/Upper Caves | Initialized slip node 27716 | -5/Upper Caves | Entered Zhirov 27716 | -5/Zhirov | Discovered new exit (range 3) 27721 | -5/Zhirov | Met Zhirov 27725 | -5/Zhirov | Learned location of Testing (-3) 27725 | -5/Zhirov | Learned location of Command (-1) 27728 | -5/Zhirov | Zhirov requested help retrieving the SGEMP Prototype 27732 | -5/Zhirov | Found Alien Artifact 27732 | -5/Zhirov | Identified Integrated Reactor 27732 | -5/Zhirov | Installed Integrated Reactor, increased core energy generation (+10) 27778 | -5/Zhirov | Identified exit to Proximity Caves 27780 | -5/Zhirov | Entered Proximity Caves 27863 | -4/Proximity Caves | Learned Research terminal intel 27865 | -4/Proximity Caves | Learned 12 Research zone layouts 28025 | -4/Proximity Caves | Learned 4 Research zone layouts 28339 | -4/Proximity Caves | Discovered exit to Factory (range 13) 28402 | -4/Proximity Caves | Entered Factory 28402 | -4/Factory | Evolved 2 slots: Utility x2 28403 | -4/Factory | Loaded intel: 77 trap records 28404 | -4/Factory | Loaded intel: 28 terminal locations 28454 | -4/Factory | Identified exit to Research 28503 | -4/Factory | Identified exit to Upper Caves 28503 | -4/Factory | Identified exit to Extension 28503 | -4/Factory | Identified exit to Armory 28536 | -4/Factory | Repaired Exp. Propulsion Shielding? 28752 | -4/Factory | Build established: Wizard-Sprinter 29073 | -4/Factory | Spotted B-86 Titan 29075 | -4/Factory | Destroyed B-86 Titan 29289 | -4/Factory | Fabricated Exp. Hacking Suite (x1) 29479 | -4/Factory | Fabricated Impulse Thruster Array (x1) 29519 | -4/Factory | Fabricated G-67 Veteran (x3) 29719 | -4/Factory | Lost 3 parts (1n2u) 30043 | -4/Factory | Repaired Exp. Sensor Array 30044 | -4/Factory | Repaired Broken Gravity Flail? 30085 | -4/Factory | Repaired Exp. Propulsion Shielding 30205 | -4/Factory | Incoming investigation squad redirected 30273 | -4/Factory | Fabricated Exp. Hacking Suite (x1) 30279 | -4/Factory | Repaired Ionic Axe? 30300 | -4/Factory | Repaired Com. Particle Reactor? 30332 | -4/Factory | Repaired Exp. Utility Shielding 30657 | -4/Factory | Repaired Hvy. Dispersion Rifle 30757 | -4/Factory | Repaired Lrg. Storage Unit 30855 | -4/Factory | Found Faulty Centrium Greatsword 31290 | -4/Factory | Sucked down chute 31290 | -4/Factory | Entered Waste 31291 | -4/Waste | Joined by Warlord forces that had cleared the area 31332 | -4/Waste | Discovered new exit (range 12) 31337 | -4/Waste | Identified exit to Factory 31402 | -4/Waste | Entered Factory 31402 | -4/Factory | Accompanied by 20 allies 31403 | -4/Factory | Loaded intel: 28 terminal locations 31475 | -4/Factory | Garrison activated, responded to threat 31653 | -4/Factory | Found Prototype Device 31721 | -4/Factory | Identified Exp. ECM Suite 31902 | -4/Factory | First assault squad dispatched 31931 | -4/Factory | Incoming assault squad redirected 32104 | -4/Factory | Spotted B-86 Titan 32703 | -4/Factory | Incoming assault squad redirected 32955 | -4/Factory | Incoming investigation squad redirected 33171 | -4/Factory | Incoming investigation squad redirected 33240 | -4/Factory | Fabricated P-70 Sage? 33377 | -4/Factory | Entered Extension 33377 | -4/Extension | Accompanied by 2 allies 33433 | -4/Extension | Rescued a captive Derelict 33434 | -4/Extension | Rescued a captive Derelict 33447 | -4/Extension | Rescued A7 33587 | -4/Extension | Rescued a captive Derelict 33588 | -4/Extension | Rescued a captive Derelict 33801 | -4/Extension | Build established: Hacker-Sprinter 33834 | -4/Extension | Spotted B-86 Titan 33848 | -4/Extension | Spotted B-86 Titan 33850 | -4/Extension | Destroyed B-86 Titan 33855 | -4/Extension | Destroyed B-86 Titan 33893 | -4/Extension | Rescued a captive Derelict 33896 | -4/Extension | Rescued a captive Derelict 34145 | -4/Extension | Discovered exit to Research (range 16) 34145 | -4/Extension | Discovered new exit (range 16) 34222 | -4/Extension | Identified exit to Cetus 34232 | -4/Extension | Entered Cetus 34232 | -4/Cetus | Accompanied by 9 allies (A7) 34237 | -4/Cetus | Acquired a Cetus Manufacturing Module code from A7 34247 | -4/Cetus | Spotted Cetus Guard 34247 | -4/Cetus | Spotted Cetus Guard 34250 | -4/Cetus | Spotted Cetus Guard 34254 | -4/Cetus | Spotted Cetus Guard 34261 | -4/Cetus | Destroyed Cetus Guard 34262 | -4/Cetus | Allies destroyed Cetus Guard 34266 | -4/Cetus | Allies destroyed Cetus Guard 34275 | -4/Cetus | Allies destroyed Cetus Guard 34326 | -4/Cetus | Started Cetus Manufacturing Module 34334 | -4/Cetus | Escorted A7 to Cetus Mainframe 34347 | -4/Cetus | Discovered new exit (range 16) 34351 | -4/Cetus | Manufactured an Enhanced Grunt 34376 | -4/Cetus | Manufactured an Enhanced Grunt 34401 | -4/Cetus | Manufactured an Enhanced Grunt 34426 | -4/Cetus | Manufactured an Enhanced Grunt 34451 | -4/Cetus | Manufactured an Enhanced Grunt 34458 | -4/Cetus | Identified exit to Archives 34490 | -4/Cetus | Entered Archives 34490 | -4/Archives | Accompanied by 8 allies (A7) 34495 | -4/Archives | Received a hacking code to weaken MAIN.C 34521 | -4/Archives | Discovered new exit (range 15) 34540 | -4/Archives | Discovered new exit (range 16) 34548 | -4/Archives | Identified exit to Hub_04(d) 34594 | -4/Archives | Entered Hub_04(d) 34594 | -4/Hub_04(d) | Accompanied by 5 allies 34671 | -4/Hub_04(d) | Incoming investigation squad redirected 34739 | -4/Hub_04(d) | Discovered exit to Research (range 9) 34772 | -4/Hub_04(d) | Discovered exit to Research (range 16) 34844 | -4/Hub_04(d) | First assault squad dispatched 34866 | -4/Hub_04(d) | Incoming assault squad redirected 34945 | -4/Hub_04(d) | Network Hub disabled 34945 | -4/Hub_04(d) | Network Hub disabled 34946 | -4/Hub_04(d) | Core integrity fell below 50% 34946 | -4/Hub_04(d) | Spotted Lightning 34946 | -4/Hub_04(d) | Spotted Lightning 34947 | -4/Hub_04(d) | Spotted Lightning 34948 | -4/Hub_04(d) | System corruption reached 10% 34958 | -4/Hub_04(d) | Entered Research 34958 | -3/Research | Evolved 2 slots: Power x1, Propulsion x1 34959 | -3/Research | Identified exit to Research 34960 | -3/Research | Loaded intel: 22 terminal locations 34982 | -3/Research | Lost 4 parts (1p2u1w) 35111 | -3/Research | Found Enh. Force Lance 35204 | -3/Research | Repaired Exp. Utility Shielding 35238 | -3/Research | Repaired Lgt. Antimatter Reactor 35271 | -3/Research | Repaired Adv. Surge Thruster 35321 | -3/Research | Repaired Adv. Gravity Neutralizer 35411 | -3/Research | Repaired Field Propulsion Array 35444 | -3/Research | Repaired Field Propulsion Array 35481 | -3/Research | Identified exit to Testing 35489 | -3/Research | Found Adv. Powered Armor 35494 | -3/Research | Repaired Diametric Drive? 35650 | -3/Research | Build established: Wizard-Sprinter 35673 | -3/Research | Found Exp. Melee Analysis Suite 35688 | -3/Research | Found Prototype Device 35834 | -3/Research | Identified Exp. Thermal Shield 35839 | -3/Research | Repaired Impulse Thruster Array? 35875 | -3/Research | Found Fusion Bomb Launcher 36097 | -3/Research | Repaired Centrium Medium Armor Plating? 36570 | -3/Research | Incoming investigation squad redirected 36604 | -3/Research | Fabricated Femtoactuators (x1) 36845 | -3/Research | Entered Testing 36854 | -3/Testing | Found Prototype Energy Gun 36854 | -3/Testing | Identified Tachyon Dispersion Ray 37137 | -3/Testing | Repaired Exp. Utility Shielding 37391 | -3/Testing | Found Prototype Device 37391 | -3/Testing | Identified Exp. Hardlight Generator 37437 | -3/Testing | Repaired Exp. Utility Shielding? 37547 | -3/Testing | Found Prototype Device 37564 | -3/Testing | Identified Exp. Thermal Defense Suite 37616 | -3/Testing | Found Adv. EM Disruption Field 37629 | -3/Testing | Found Prototype Device 37646 | -3/Testing | Fabricated Beam Splitter? 37688 | -3/Testing | Identified Adv. Kinecellerator 37912 | -3/Testing | Repaired Gravity Flail 38043 | -3/Testing | Found Prototype Energy Cannon 38043 | -3/Testing | Identified Disintegrator 38051 | -3/Testing | Entered Research 38051 | -2/Research | Evolved 2 slots: Propulsion x1, Utility x1 38194 | -2/Research | Found Prototype Launcher 38272 | -2/Research | Identified Ragnarok Missile Launcher 38273 | -2/Research | Fabricated G-73 Enforcer? 38356 | -2/Research | Found Prototype Slashing Weapon 38387 | -2/Research | Discovered new exit (range 5) 38468 | -2/Research | Identified exit to Quarantine 38500 | -2/Research | Spotted B-90 Cyclops 38537 | -2/Research | Discovered new exit (range 9) 38584 | -2/Research | Found Point Singularity Launcher 38624 | -2/Research | Identified Nanosword 38667 | -2/Research | Destroyed B-90 Cyclops 38810 | -2/Research | Incoming investigation squad redirected 38878 | -2/Research | Repaired Mic. Antimatter Reactor 39037 | -2/Research | Repaired Nanosword 39062 | -2/Research | Spotted B-90 Cyclops 39064 | -2/Research | Destroyed B-90 Cyclops 39273 | -2/Research | Incoming investigation squad redirected 39283 | -2/Research | Fabricated Weapon Mount (x2) 39409 | -2/Research | Entered Quarantine 39460 | -2/Quarantine | Found Alien Artifact 39460 | -2/Quarantine | Identified Core Reset Matrix 39460 | -2/Quarantine | Used Core Reset Matrix 39464 | -2/Quarantine | Detected hypermatrix surge 39464 | -2/Quarantine | Sensed 18 artifacts in vicinity 39507 | -2/Quarantine | Found Subatomic Replicator 39534 | -2/Quarantine | Found Sigix Broadsword 39543 | -2/Quarantine | Found Core Cannon 39562 | -2/Quarantine | Found Transdimensional Reconstructor 39563 | -2/Quarantine | Found Transdimensional Reconstructor 39814 | -2/Quarantine | Found Core Stripper 39815 | -2/Quarantine | Discovered new exit (range 7) 39848 | -2/Quarantine | Build established: Hacker-Sprinter 39850 | -2/Quarantine | Spotted Fortress 39871 | -2/Quarantine | Discovered new exit (range 6) 39872 | -2/Quarantine | Identified exit to Section 7 39925 | -2/Quarantine | Entered Section 7 39926 | -2/Section 7 | Sensed 20 artifacts in vicinity 39969 | -2/Section 7 | Spotted S7 Guard 39981 | -2/Section 7 | Found Core Membrane 39981 | -2/Section 7 | Installed Core Membrane, gained immunity to corruption 40121 | -2/Section 7 | Found Exp. Hacking Suite 40145 | -2/Section 7 | Identified exit to Access 40153 | -2/Section 7 | Spotted S7 Guard 40169 | -2/Section 7 | Found Core Regenerator 40194 | -2/Section 7 | Spotted B-99 Colossus 40213 | -2/Section 7 | Used Subatomic Replicator to replicate LRC Boosters 40214 | -2/Section 7 | Found LRC Boosters 40214 | -2/Section 7 | Installed LRC Boosters, increased mass support (+10) 40216 | -2/Section 7 | Installed LRC Boosters, increased mass support (+10) 40218 | -2/Section 7 | Found LRC Storage 40218 | -2/Section 7 | Installed LRC Storage, increased inventory capacity (+2) 40220 | -2/Section 7 | Found LRC Matter Compressor 40220 | -2/Section 7 | Installed LRC Matter Compressor, increased matter storage capacity (+125) 40237 | -2/Section 7 | Found Integrity Redistributor 40237 | -2/Section 7 | Used Integrity Redistributor, redistributed integrity from core (-35) 40265 | -2/Section 7 | Found Transdimensional Reconstructor 40266 | -2/Section 7 | Found Transdimensional Reconstructor 40270 | -2/Section 7 | Found Terrabomb 40331 | -2/Section 7 | Integrated with Sigix Exoskeleton 40379 | -2/Section 7 | Found Terrabomb 40386 | -2/Section 7 | Spotted Executioner 40386 | -2/Section 7 | Spotted Executioner 40420 | -2/Section 7 | Spotted Striker 40420 | -2/Section 7 | Spotted Striker 40471 | -2/Section 7 | Destroyed Executioner 40476 | -2/Section 7 | Destroyed Executioner 40481 | -2/Section 7 | Found Prototype Processor 40481 | -2/Section 7 | Identified Exp. Core Analyzer 40483 | -2/Section 7 | Found Prototype Processor 40483 | -2/Section 7 | Identified Exp. Targeting Computer 40486 | -2/Section 7 | Found Prototype Device 40486 | -2/Section 7 | Identified Adv. Kinecellerator 40492 | -2/Section 7 | Found Exp. Core Analyzer 40528 | -2/Section 7 | Spotted B-90 Cyclops 40537 | -2/Section 7 | Found Integrated Dissipator 40537 | -2/Section 7 | Installed Integrated Dissipator, increased core heat dissipation (+20) 40560 | -2/Section 7 | Entered Access 40560 | -1/Access | Evolved 2 slots: Utility x2 40565 | -1/Access | Emitted hypermatrix ping 40570 | -1/Access | Assembled emerged from beneath the floor 40619 | -1/Access | Build established: Alien-Sigix 40662 | -1/Access | Assembled emerged from beneath the floor 40812 | -1/Access | Used Terrabomb 40817 | -1/Access | Discovered new exit (range 17) 40827 | -1/Access | Entered Command 40832 | -1/Command | Emitted hypermatrix ping 40837 | -1/Command | Assembled emerged from beneath the floor 40888 | -1/Command | Incoming investigation squad redirected 41077 | -1/Command | First assault squad dispatched 41097 | -1/Command | Incoming assault squad redirected 41325 | -1/Command | Assembled emerged from beneath the floor 41390 | -1/Command | Incoming assault squad redirected 41512 | -1/Command | Spotted Combat Programmer 41512 | -1/Command | Spotted Combat Programmer 41544 | -1/Command | Destroyed Combat Programmer 41545 | -1/Command | Destroyed Combat Programmer 41569 | -1/Command | Spotted M Guard 41602 | -1/Command | Spotted M Guard 41629 | -1/Command | Sigix Exoskeleton integrity reduced to 80% 41644 | -1/Command | Incoming assault squad redirected 41739 | -1/Command | Destroyed M Guard 41739 | -1/Command | All MAIN.C guards destroyed 41748 | -1/Command | Found Prototype Device 41748 | -1/Command | Identified AEGIS Remote Shield 41758 | -1/Command | Found Prototype Reactor 41759 | -1/Command | Identified Zero-point Reactor 41765 | -1/Command | Found Prototype Device 41765 | -1/Command | Identified Thermal Barrier 41801 | -1/Command | Met MAIN.C 41804 | -1/Command | 0b10 Conduit disabled 41816 | -1/Command | Used Terrabomb 41857 | -1/Command | MAIN.C's shell transforms into a squad of autonomous robots 41857 | -1/Command | Destroyed MAIN.C Shell 41857 | -1/Command | Spotted M Shell/Atk 41857 | -1/Command | Spotted M Shell/Def 41857 | -1/Command | Spotted M Shell/Def 41857 | -1/Command | Spotted M Shell/Atk 41857 | -1/Command | Spotted M Shell/Atk 41857 | -1/Command | Spotted M Shell/Def 41857 | -1/Command | Spotted M Shell/Def 41857 | -1/Command | Spotted M Shell/Atk 41859 | -1/Command | MAIN.C activated Command garrisons 41862 | -1/Command | Crushed by falling debris 41869 | -1/Command | Sigix Exoskeleton integrity reduced to 60% 41963 | -1/Command | Discovered new exit (range 18) 41977 | -1/Command | Core integrity fell below 50% 41978 | -1/Command | Sigix Exoskeleton integrity reduced to 40% 41995 | -1/Command | Warped through subspace to slip node 41995 | -1/Command | Discovered new exit (range 5) 41998 | -1/Command | Used Core Regenerator, restored core integrity (+400) 42010 | -1/Command | Entered Access_0 42011 | -1/Access_0 | Sensed 4 artifacts in vicinity 42011 | -1/Access_0 | Met Architect 42014 | -1/Access_0 | Destroyed A8 42059 | -1/Access_0 | Found Integrated Reactor 42059 | -1/Access_0 | Installed Integrated Reactor, increased core energy generation (+10) 42095 | -1/Access_0 | A6 warped into view 42103 | -1/Access_0 | Destroyed A6 42106 | -1/Access_0 | Found Femtoactuators 42167 | -1/Access_0 | A5 warped into view 42203 | -1/Access_0 | Destroyed A2 42206 | -1/Access_0 | Extracted Singularity Gate Test 138-C access codes from A2's data core 42257 | -1/Access_0 | Found Core Expander 42257 | -1/Access_0 | Installed Core Expander, added new Utility slot 42260 | -1/Access_0 | Sigix Exoskeleton integrity reduced to 20% 42269 | -1/Access_0 | Architect warped through subspace 42284 | -1/Access_0 | Destroyed A5 42353 | -1/Access_0 | Architect warped through subspace 42392 | -1/Access_0 | Started Test 138-B, establishing a local singularity 42392 | -1/Access_0 | Started Test 138-B, establishing a local singularity 42392 | -1/Access_0 | Started Test 138-C, cascade imminent 42392 | *** | Destroyed Tau Ceti IV! Last Messages --------------- Stable singularity established. >>Gate Test 138-END Connecting to Singularity Gate... Test 138 successfully terminated. >>Gate Test 138-A Running Singularity Gate diagnostics... All systems nominal. >>Gate Test 138-B Preparing Singularity Gate activation... Stable singularity established. >>Gate Test 138-C Initiating Test 138-C... Warning: Experimental formulas incomplete. Potential effects include instability. Repeat command to confirm test. >>Gate Test 138-C Initiating Test 138-C... Applying incomplete calculations.... INSTABILITY DETECTED, CASCADE IMMINENT. [Achievement: Stardust] Map ----- +----------------------------------------------------+ | ????########### "##### ### ############# | | ?????######### ## !=!%! ### ############# | | ?????######### ### %#!####### ############ | | ?????######### #### =##"#####" ########## | | ?????######### #### ### ### ########### | | ?????######### #### ### ############ | | ??????############## ### ############ | | ??????############## #### ############ | | ??????############## #### #### ########## | | ???????############# ########### ######### | | ????????############ ###########" ######### | | ????????############ ###########" ########### | | ?????????######""""" """""######" ########### | | ??????????######"""" """"#######" ########### | | ???????????#####" "#######"g ########### | | ??????????#####"" g ""######" ########### | | ?????????######"" ""######" "########## | | ?????????#######" "########h "########## | | ????????########" "########h "########## | | ???????#########" "#######" "########## | | ???????#########" "#######" ########### | | ???????#########" "#######" "########## | | ??????#########"" ""######" ########### | | ??????#########"" ""####### " ######### | | ??????##########" "#######" ########### | | ??????##########"""" XA""######## "########## | | ??????#########""""" """""######" ########### | | ?????############### ########### ########### | | ????################ ##########""" "######### | | ????################ ########## #" ########## | | ???################# #######% "######### | | ??################## #####!!![ ########## | | ??################## #####=*!] ########## | | ??##################=! #####!=![##" ########### | | ?###################=%! ######% ##" ########### | | ?##################; ! "####"""" ########### | | ?################ ########## | | ?################ ########## | | ?################ ########"#### ########## | | ################# ############# ## ########## | | ################# ################ ########### | | ############## ## ##"# ########## "############ | | ############## # ##" ########## "############ | | ############## "######## ############# | | ############# ######## ############# | | ################" % % ############# | | #################### "## ############# | | ###################" ### ##################### | | ################### #### ##################### | | ################## ########################### | +----------------------------------------------------+ Best States ------------- Heat Dissipation 161 Coolant Potential 65 Energy Generation 91 Energy Capacity 450 Matter Stores 425 Matter Capacity 600 Sight Range 23 Robot Scan Range 20 Terrain Scan Density 10 ECM Strength 2 Jamming Range 22 Additional Mass Support 16 Armor Coverage 750 Resistance: KI 50 Resistance: TH 50 Resistance: EX 50 Resistance: EM 50 Resistance: I 50 Resistance: S 50 Resistance: P 50 Propulsion Shielding 90 Utility Shielding 90 Point Defense Rating 160 Melee Speed Boost 50 Evasion (%) 77 Targeting Accuracy 20 Melee Accuracy 12 Core Analysis 8 Recoil Reduction 3 Offensive Hacking 42 Defensive Hacking 28 Authchip Count 1 Trap Extractor Capacity 8 Item Schematics ----------------- None Robot Schematics ------------------ None Fabricated ------------ Imp. Antigrav System | x2 | -7/Factory | Preloaded Nuclear Pulse Array | x2 | -7/Factory Nuclear Pulse Array | x2 | -6/Factory | Authchip Adv. Hacking Suite | x1 | -6/Factory | Authchip Adv. Hacking Suite | x1 | -5/Factory Field Propulsion Array | x2 | -5/Factory | Preloaded Lgt. Regenerative Plating | x1 | -5/Factory Enh. Nova Cannon | x1 | -5/Factory | Preloaded Exp. Propulsion Shielding | x1 | -5/Factory X-67 Chaingunner | x2 | -5/Factory | Preloaded Exp. Hacking Suite | x1 | -4/Factory Impulse Thruster Array | x1 | -4/Factory G-67 Veteran | x3 | -4/Factory | Preloaded Exp. Hacking Suite | x1 | -4/Factory P-70 Sage | x2 | -4/Factory Femtoactuators | x1 | -3/Research Beam Splitter | x1 | -3/Testing | Preloaded G-73 Enforcer | x3 | -2/Research | Preloaded Weapon Mount | x2 | -2/Research Alien Tech Used ----------------- Dimensional Node Initializer Integrated Reactor Core Reset Matrix Core Stripper Sigix Broadsword Core Membrane Subatomic Replicator LRC Boosters LRC Storage LRC Matter Compressor Integrity Redistributor Sigix Exoskeleton Sigix Sheargun Integrated Dissipator Terrabomb Transdimensional Reconstructor Core Regenerator Core Cannon Core Expander Achievements -------------- Stardust Challenges ------------ None Game ------ Seed SubatomicPropulsionMachine Manual? 0 Play Time 13:53:11 Cumulative 676.8 hours Start 2023.04.26 @ 17:04:05 End 2023.04.28 @ 15:35:57 Sessions 11 Manual Loads 0 Difficulty Rogue Special Mode None Game No. 138 Rogue 138 Adventurer 0 Explorer 0 Win Type 5 Total 39 Types 22/4/6/1/2/1/2/1/0 Lore% 94 Gallery% 95 Achievement% 89 Wizard Run 0 Options --------- ASCII 0 Keyboard 0 Movement Numpad Keybinds 0 Fullscreen 1 Font 14/SmallcapsGlow Map View 84x54 Tactical HUD 1 Map Filters NONE Filters NONE Steam 1 RUN: 532ef4be-9aaf-498b-9a18-9d07dc00d91c